{"text_format":"3","workbook":"xlsx","n_sheets":4,"sheets":["第一类，市直事业单位职位表","第一类，县（市、区）事业单位职位表 (2)","第二类，教育系统免费师范生（研究生）职位表","第三类，企业职位表"],"not_rendered":{"defined_names":3},"read":"whole","date_system":"1900"}

{"sheet":"第一类，市直事业单位职位表","index":0,"n_rows":189,"n_cols":13,"rows_kept":189,"merged":[[0,0,0,12]]}
["表一：遵义市2017年赴部分高校人才招聘需求目录（市直事业单位）"]
["序号","单位名称","单位性质","单位联系人","联系电话","邮箱","需求岗位名称","需求专业(职称)","学历要求","数量","履历要求","需求描述","提供待遇"]
[1,"遵义师范学院","全额事业","宁晨","085128937712","zysyrcb@163.com","工学院","机械工程、土木工程、电气工程","博士研究生",3,null,"专职教师","（1）40万元人才引进费；（2）科研项目资助经费5—10万元；（3）未取得副高职称前，按校内七级岗位的标准发放工资待遇。"]
[2,"遵义师范学院","全额事业","宁晨","085128937712","zysyrcb@163.com","信息工程学院","计算机、通信、物联网和网络相关专业","博士研究生",2,null,"专职教师","（1）40万元人才引进费；（2）科研项目资助经费5—10万元；（3）未取得副高职称前，按校内七级岗位的标准发放工资待遇。"]
[3,"遵义师范学院","全额事业","宁晨","085128937712","zysyrcb@163.com","体育学院","体育学","博士研究生",1,null,"专职教师","（1）40万元人才引进费；（2）科研项目资助经费5—10万元；（3）未取得副高职称前，按校内七级岗位的标准发放工资待遇。"]
[4,"遵义师范学院","全额事业","宁晨","085128937712","zysyrcb@163.com","美术学院","美术学、设计学","博士研究生",2,null,"专职教师","（1）40万元人才引进费；（2）科研项目资助经费5—10万元；（3）未取得副高职称前，按校内七级岗位的标准发放工资待遇。"]
[5,"遵义师范学院","全额事业","宁晨","085128937712","zysyrcb@163.com","音乐与舞蹈学院","音乐学","博士研究生",1,null,"专职教师","（1）40万元人才引进费；（2）科研项目资助经费5—10万元；（3）未取得副高职称前，按校内七级岗位的标准发放工资待遇。"]
[6,"遵义师范学院","全额事业","宁晨","085128937712","zysyrcb@163.com","马克思主义学院","马克思主义理论","博士研究生",3,null,"专职教师","（1）40万元人才引进费；（2）科研项目资助经费5—10万元；（3）未取得副高职称前，按校内七级岗位的标准发放工资待遇。"]
[7,"遵义师范学院","全额事业","宁晨","085128937712","zysyrcb@163.com","全校各部门","专业不限","博士研究生",13,null,"专职教师","（1）40万元人才引进费；（2）科研项目资助经费5—10万元；（3）未取得副高职称前，按校内七级岗位的标准发放工资待遇。"]
[8,"遵义师范学院","全额事业","宁晨","085128937712","zysyrcb@163.com","管理学院","社会学、社会保障、管理学、经济学、投资学、金融学、管理科学与工程","博士研究生",5,null,"专职教师","（1）40万元人才引进费；（2）科研项目资助经费5—10万元；（3）未取得副高职称前，按校内七级岗位的标准发放工资待遇。"]
[9,"遵义师范学院","全额事业","宁晨","085128937712","zysyrcb@163.com","历史文化与旅游学院","世界史、中国近现代史、地理学、旅游管理、民族学","博士研究生",5,null,"专职教师","（1）40万元人才引进费；（2）科研项目资助经费5—10万元；（3）未取得副高职称前，按校内七级岗位的标准发放工资待遇。"]
[10,"遵义师范学院","全额事业","宁晨","085128937712","zysyrcb@163.com","外国语学院","英语及相关专业","博士研究生",2,null,"专职教师","（1）40万元人才引进费；（2）科研项目资助经费5—10万元；（3）未取得副高职称前，按校内七级岗位的标准发放工资待遇。"]
[11,"遵义师范学院","全额事业","宁晨","085128937712","zysyrcb@163.com","教师教育科学学院","教育学、心理学","博士研究生",4,null,"专职教师","（1）40万元人才引进费；（2）科研项目资助经费5—10万元；（3）未取得副高职称前，按校内七级岗位的标准发放工资待遇。"]
[12,"遵义师范学院","全额事业","宁晨","085128937712","zysyrcb@163.com","数学学院","数学类专业、管理科学与工程、计算机科学与工程","博士研究生",3,null,"专职教师","（1）40万元人才引进费；（2）科研项目资助经费5—10万元；（3）未取得副高职称前，按校内七级岗位的标准发放工资待遇。"]
[13,"遵义师范学院","全额事业","宁晨","085128937712","zysyrcb@163.com","化学化工学院","化学类各专业","博士研究生",2,null,"专职教师","（1）40万元人才引进费；（2）科研项目资助经费5—10万元；（3）未取得副高职称前，按校内七级岗位的标准发放工资待遇。"]
[14,"遵义师范学院","全额事业","宁晨","085128937712","zysyrcb@163.com","资源与环境学院","环境科学、环境工程","博士研究生",3,null,"专职教师","（1）40万元人才引进费；（2）科研项目资助经费5—10万元；（3）未取得副高职称前，按校内七级岗位的标准发放工资待遇。"]
[15,"遵义师范学院","全额事业","宁晨","085128937712","zysyrcb@163.com","生物与农业科技学院","食品科学与工程","博士研究生",1,null,"专职教师","（1）40万元人才引进费；（2）科研项目资助经费5—10万元；（3）未取得副高职称前，按校内七级岗位的标准发放工资待遇。"]
[16,"遵义师范学院","全额事业","宁晨","085128937712","zysyrcb@163.com","物理与电子科学学院","材料物理与化学、材料学、材料加工工程、天体物理、天体测量与天体力学、料子物理与原子物理、电子科学与技术","博士研究生",3,null,"专职教师","（1）40万元人才引进费；（2）科研项目资助经费5—10万元；（3）未取得副高职称前，按校内七级岗位的标准发放工资待遇。"]
[17,"遵义医药高等专科学校","全额事业","林立","085128776224","1145704322@qq.com","卫生管理系教师","预防医学相关专业、健康管理、卫生检验","博士研究生",3,null,"专职教师","提供人才公寓一套，25万安家费，10万科研启动经费"]
[18,"遵义医药高等专科学校","全额事业","林立","085128776224","1145704322@qq.com","社科部教师","思政教育、马克思主义基本原理、中国近现代史、马克思主义中国化","博士研究生",3,null,"专职教师","提供人才公寓一套，25万安家费，10万科研启动经费"]
[19,"遵义医药高等专科学校","全额事业","林立","085128776224","1145704322@qq.com","心理学教师","应用心理学","博士研究生",2,null,"专职教师","提供人才公寓一套，25万安家费，10万科研启动经费"]
[20,"遵义医药高等专科学校","全额事业","林立","085128776224","1145704322@qq.com","基础部生理学教师","生理学或基础医学、临床医学专业","博士研究生",1,null,"专职教师","提供人才公寓一套，25万安家费，10万科研启动经费"]
[21,"遵义医药高等专科学校","全额事业","林立","085128776224","1145704322@qq.com","基础部医学微生物教师","医学微生物学、病原生物学或基础医学、临床医学、检验专业","博士研究生",1,null,"专职教师","提供人才公寓一套，25万安家费，10万科研启动经费"]
[22,"遵义医药高等专科学校","全额事业","林立","085128776224","1145704322@qq.com","基础部医学免疫学教师","医学免疫学或基础医学、临床医学、检验专业","博士研究生",1,null,"专职教师","提供人才公寓一套，25万安家费，10万科研启动经费"]
[23,"遵义医药高等专科学校","全额事业","林立","085128776224","1145704322@qq.com","基础部寄生虫学教师","寄生虫学、病原生物学或基础医学、临床医学、检验专业","博士研究生",1,null,"专职教师","提供人才公寓一套，25万安家费，10万科研启动经费"]
[24,"遵义医药高等专科学校","全额事业","林立","085128776224","1145704322@qq.com","基础部人体解剖学教师","人体解剖学或基础医学、临床医学专业","博士研究生",1,null,"专职教师","提供人才公寓一套，25万安家费，10万科研启动经费"]
[25,"遵义医药高等专科学校","全额事业","林立","085128776224","1145704322@qq.com","基础部组织胚胎学","组织胚胎学或基础医学、临床医学专业","博士研究生",1,null,"专职教师","提供人才公寓一套，25万安家费，10万科研启动经费"]
[26,"遵义医药高等专科学校","全额事业","林立","085128776224","1145704322@qq.com","基础部英语教师","英语专业、英语翻译专业","博士研究生",1,null,"专职教师","提供人才公寓一套，25万安家费，10万科研启动经费"]
[27,"遵义医药高等专科学校","全额事业","林立","085128776224","1145704322@qq.com","基础部体育教师","体育或田径、运动医学专业","博士研究生",1,null,"专职教师","提供人才公寓一套，25万安家费，10万科研启动经费"]
[28,"遵义医药高等专科学校","全额事业","林立","085128776224","1145704322@qq.com","网络技术人员","计算机类专业","博士研究生",1,null,"专职教师","提供人才公寓一套，25万安家费，10万科研启动经费"]
[29,"中共遵义市委党校","全额事业","陈一华","085128921456","273883616@qq.com","党史党建教研部、基础理论教研部、公共管理教研部教师","马克思主义哲学、中共党史、马克思主义理论、中国近现代史、公共管理类专业","硕士研究生及以上",2,"无","能胜任教学科研工作","事业单位待遇"]
[30,"中共遵义市委宣传部","机关","何贤敏","085128650611","847493207@qq.com","遵义市互联网舆情研究中心专业技术人员","网络传播","硕士研究生及以上",1,"无","网络内容传播","执行国家规定的事业单位专业技术人员待遇"]
[31,"中共遵义市委宣传部","机关","何贤敏","085128650611","847493207@qq.com","遵义市互联网舆情研究中心专业技术人员","网络安全","硕士研究生及以上",1,"无","网络安全技术保障","执行国家规定的事业单位专业技术人员待遇"]
[32,"遵义市PPP项目服务中心","全额事业","丁亮","085128237204","403798230@qq.com","PPP项目管理","金融、工商管理","硕士研究生及以上",2,"无","具有扎实的专业知识，熟悉国家经济、金融、财政政策，具有较强的沟通协调和文字综合能力","事业单位在编人员，根据遵义市事业单位相应专业技术岗位工资标准给付工资及“五险一金”。"]
[33,"遵义市劳动人民文化宫","全额事业","李娅","085128639545","zyghzxb@163.com","管理人员","计算机类","硕士研究生及以上",1,"无","网络操作与管理","事业管理岗位工资"]
[34,"遵义市劳动人民文化宫","全额事业","李娅","085128639545","zyghzxb@163.com","管理人员","艺术教育、体育类","硕士研究生及以上",1,"无","文体活动策划","事业管理岗位工资"]
[35,"遵义市妇幼保健院（遵义市第二人民医院）","差额事业","刘苏亚","085128273110","170991057@qq.com","产科医师","临床医学、妇产科学","硕士研究生及以上",3,"从事产科临床工作","从事产科临床工作","面议"]
[36,"遵义市妇幼保健院（遵义市第二人民医院）","差额事业","刘苏亚","085128273110","170991057@qq.com","儿科医师","临床医学、儿科学","硕士研究生及以上",3,"从事儿科临床工作","从事儿科临床工作","面议"]
[37,"遵义市妇幼保健院（遵义市第二人民医院）","差额事业","刘苏亚","085128273110","170991057@qq.com","影像超声医师","临床医学、医学影像学","硕士研究生及以上",3,"从事超声影像科、放射科临床工作","从事超声影像科、放射科临床工作","面议"]
[38,"遵义市妇幼保健院（遵义市第二人民医院）","差额事业","刘苏亚","085128273110","170991057@qq.com","重症监护室医师","临床医学、重症医学","硕士研究生及以上",3,"从事重症监护室临床工作","从事重症监护室临床工作","面议"]
[39,"遵义市妇幼保健院（遵义市第二人民医院）","差额事业","刘苏亚","085128273110","170991057@qq.com","新生儿科医师","临床医学、儿科学","硕士研究生及以上",2,"从事新生儿科临床工作","从事新生儿科临床工作","面议"]
[40,"遵义市妇幼保健院（遵义市第二人民医院）","差额事业","刘苏亚","085128273110","170991057@qq.com","外科医师","临床医学、外科学","硕士研究生及以上",2,"从事外科临床工作","从事外科临床工作","面议"]
[41,"遵义市妇幼保健院（遵义市第二人民医院）","差额事业","刘苏亚","085128273110","170991057@qq.com","儿童保健科医师","临床医学、儿科学","硕士研究生及以上",2,"从事儿童保健科临床工作","从事儿童保健科临床工作","面议"]
[42,"遵义市中医院","差额事业","刘勇","18085285990","546225926@qq.com","医学博士","临床医学类、中医学类","博士研究生",5,"有临床、科教工作经历","有临床、科教工作经历","直接入编，按市级标准享受工资及住房补贴，一次性补助人才引进费，具体标准面议，提供免费住宿1年，协助解决家属就业及子女入学"]
[43,"遵义市中医院","差额事业","刘勇","18085285990","546225926@qq.com","医学硕士","临床医学类、中医学类、医学检验、医学影像、卫生事业管理（医事法律）","硕士研究生",15,"从事医院临床、科教工作","从事医院临床、科教工作","直接入编，按市级标准享受工资及福利待遇，一次性补助人才引进费，具体标准面议，提供免费住宿1年"]
[44,"遵义市第四人民医院","全额事业","何梅","18275615566","1424943993@qq.com","内科医师","内科方向","博士研究生",1,"有临床相关工作经验，具有相应执业资格","学科带头人，急需紧缺","1、工资待遇按国家事业单位工资政策执行。2、发给安家费：80-120万元；3、人才津贴：800元/月；硕士4、交通补贴：400元/月；硕士5、住房补贴400/月（一年）6、异地生活补贴：遵义市户籍以外人才工作满5年后，一次性发给生活补贴5万元；7、有其他条件要求者可面议。"]
[45,"遵义市第四人民医院","全额事业","何梅","18275615566","1424943993@qq.com","外科医师","外科方向","博士研究生",1,"有临床相关工作经验，具有相应执业资格","学科带头人，急需紧缺","1、工资待遇按国家事业单位工资政策执行。2、发给安家费：80-120万元；3、人才津贴：800元/月；硕士4、交通补贴：400元/月；硕士5、住房补贴400/月（一年）6、异地生活补贴：遵义市户籍以外人才工作满5年后，一次性发给生活补贴5万元；7、有其他条件要求者可面议。"]
[46,"遵义市第四人民医院","全额事业","何梅","18275615566","1424943993@qq.com","感染科医师","传染病方向","博士研究生",1,"有临床相关工作经验，具有相应执业资格","学科带头人，急需紧缺","1、工资待遇按国家事业单位工资政策执行。2、发给安家费：80-120万元；3、人才津贴：800元/月；硕士4、交通补贴：400元/月；硕士5、住房补贴400/月（一年）6、异地生活补贴：遵义市户籍以外人才工作满5年后，一次性发给生活补贴5万元；7、有其他条件要求者可面议。"]
[47,"遵义市第四人民医院","全额事业","何梅","18275615566","1424943993@qq.com","儿科医师","儿科","硕士研究生及以上",1,"有临床相关工作经验，具有相应执业资格","学科带头人，急需紧缺","1、工资待遇按国家事业单位工资政策执行。2、发给安家费：博士80-120万元；硕士5-30万元；3、人才津贴：博士800元/月；硕士400元/月；4、交通补贴：博士400元/月；硕士200元/月；5、住房补贴400/月（一年）6、异地生活补贴：遵义市户籍以外人才工作满5年后，博士一次性发给生活补贴5万元；硕士一次性发给生活补贴3万元。"]
[48,"遵义市第四人民医院","全额事业","何梅","18275615566","1424943993@qq.com","内科医师","内科方向","硕士研究生及以上",2,"有临床相关工作经验，具有相应执业资格","学科带头人，急需紧缺","1、工资待遇按国家事业单位工资政策执行。2、发给安家费：博士80-120万元；硕士5-30万元；3、人才津贴：博士800元/月；硕士400元/月；4、交通补贴：博士400元/月；硕士200元/月；5、住房补贴400/月（一年）6、异地生活补贴：遵义市户籍以外人才工作满5年后，博士一次性发给生活补贴5万元；硕士一次性发给生活补贴3万元。"]
[49,"遵义市第四人民医院","全额事业","何梅","18275615566","1424943993@qq.com","外科医师","外科方向","硕士研究生及以上",2,"有临床相关工作经验，具有相应执业资格","学科带头人，急需紧缺","1、工资待遇按国家事业单位工资政策执行。2、发给安家费：博士80-120万元；硕士5-30万元；3、人才津贴：博士800元/月；硕士400元/月；4、交通补贴：博士400元/月；硕士200元/月；5、住房补贴400/月（一年）6、异地生活补贴：遵义市户籍以外人才工作满5年后，博士一次性发给生活补贴5万元；硕士一次性发给生活补贴3万元。"]
[50,"遵义市第四人民医院","全额事业","何梅","18275615566","1424943993@qq.com","中医（中西医结合）科医师","中医、中西医结合","硕士研究生及以上",2,"有临床相关工作经验，具有相应执业资格","学科带头人，急需紧缺","1、工资待遇按国家事业单位工资政策执行。2、发给安家费：博士80-120万元；硕士5-30万元；3、人才津贴：博士800元/月；硕士400元/月；4、交通补贴：博士400元/月；硕士200元/月；5、住房补贴400/月（一年）6、异地生活补贴：遵义市户籍以外人才工作满5年后，博士一次性发给生活补贴5万元；硕士一次性发给生活补贴3万元。"]
[51,"遵义市第四人民医院","全额事业","何梅","18275615566","1424943993@qq.com","感染科医师","传染病方向","硕士研究生及以上",2,"有临床相关工作经验，具有相应执业资格","学科带头人，急需紧缺","1、工资待遇按国家事业单位工资政策执行。2、发给安家费：博士80-120万元；硕士5-30万元；3、人才津贴：博士800元/月；硕士400元/月；4、交通补贴：博士400元/月；硕士200元/月；5、住房补贴400/月（一年）6、异地生活补贴：遵义市户籍以外人才工作满5年后，博士一次性发给生活补贴5万元；硕士一次性发给生活补贴3万元。"]
[52,"遵义市第四人民医院","全额事业","何梅","18275615566","1424943993@qq.com","妇产科医师","妇产科方向","硕士研究生及以上",1,"有临床相关工作经验，具有相应执业资格","学科带头人，急需紧缺","1、工资待遇按国家事业单位工资政策执行。2、发给安家费：博士80-120万元；硕士5-30万元；3、人才津贴：博士800元/月；硕士400元/月；4、交通补贴：博士400元/月；硕士200元/月；5、住房补贴400/月（一年）6、异地生活补贴：遵义市户籍以外人才工作满5年后，博士一次性发给生活补贴5万元；硕士一次性发给生活补贴3万元。"]
[53,"遵义市第四人民医院","全额事业","何梅","18275615566","1424943993@qq.com","放射影像医师","临床医学、医学影像学","硕士研究生及以上",1,"有临床相关工作经验，具有相应执业资格","学科带头人，急需紧缺","1、工资待遇按国家事业单位工资政策执行。2、发给安家费：博士80-120万元；硕士5-30万元；3、人才津贴：博士800元/月；硕士400元/月；4、交通补贴：博士400元/月；硕士200元/月；5、住房补贴400/月（一年）6、异地生活补贴：遵义市户籍以外人才工作满5年后，博士一次性发给生活补贴5万元；硕士一次性发给生活补贴3万元。"]
[54,"遵义市第四人民医院","全额事业","何梅","18275615566","1424943993@qq.com","B超影像医师","临床医学、医学影像学","硕士研究生及以上",1,"有临床相关工作经验，具有相应执业资格","学科带头人，急需紧缺","1、工资待遇按国家事业单位工资政策执行。2、发给安家费：博士80-120万元；硕士5-30万元；3、人才津贴：博士800元/月；硕士400元/月；4、交通补贴：博士400元/月；硕士200元/月；5、住房补贴400/月（一年）6、异地生活补贴：遵义市户籍以外人才工作满5年后，博士一次性发给生活补贴5万元；硕士一次性发给生活补贴3万元。"]
[55,"遵义市第四人民医院","全额事业","何梅","18275615566","1424943993@qq.com","检验师","医学检验","硕士研究生及以上",1,"有临床相关工作经验，具有相应执业资格","学科带头人，急需紧缺","1、工资待遇按国家事业单位工资政策执行。2、发给安家费：博士80-120万元；硕士5-30万元；3、人才津贴：博士800元/月；硕士400元/月；4、交通补贴：博士400元/月；硕士200元/月；5、住房补贴400/月（一年）6、异地生活补贴：遵义市户籍以外人才工作满5年后，博士一次性发给生活补贴5万元；硕士一次性发给生活补贴3万元。"]
[56,"遵义荣军院","全额事业","任洁","085128426761","863040570@qq.com","康复医师","康复医学专业","硕士研究生及以上",1,"无","除临床医生的工作外，还负责康复评价、治疗指导等","按国家规定待遇执行"]
[57,"遵义荣军院","全额事业","任洁","085128426761","863040570@qq.com","康复治疗师","康复治疗技术专业","硕士研究生及以上",1,"无","具有较扎实的康复治疗学基础理论和康复治疗学技术","按国家规定执行"]
[58,"遵义市广播电视台","差额事业","肖宇","085128253956","459059580@QQ.com","新媒体","新媒体类、新闻类、计算机类、中文类、美术类","硕士研究生及以上",2,"熟悉新媒体业务，有相关工作经历","广播电视新媒体业务开发与运行","一经聘用，一次性给予2万元人才津贴，户口属遵义籍以外的每月给予1000元住房补贴，工资待遇按人社部门规定执行。"]
[59,"遵义市疾病预防控制中心","全额事业","田宗永","085128923277","825927537@qq.com","理化检验","分析化学","硕士研究生",1,"研究生","食品理化检验","事业单位工作人员待遇"]
[60,"遵义市疾病预防控制中心","全额事业","田宗永","085128923277","825927537@qq.com","理化检验","卫生检验","硕士研究生",1,"研究生","水质理化检验","事业单位人员工资待遇"]
[61,"遵义市中心血站","全额事业","覃诗竹","085128634566","331335911@qq.com","检验科工作人员","检验及相关专业","硕士研究生及以上",2,"熟练掌握专业相关岗位知识技能","负责血液检测","根据遵义市相关政策提供待遇"]
[62,"遵义市中心血站","全额事业","覃诗竹","085128634566","331335911@qq.com","体检医生","临床医学及相关专业","硕士研究生及以上",2,"熟练掌握专业相关岗位知识技能","负责献血者的体格检查","根据遵义市相关政策提供待遇"]
[63,"遵义市中心血站","全额事业","覃诗竹","085128634566","331335911@qq.com","成分科工作人员","药学及相关专业","硕士研究生及以上",1,"熟练掌握专业相关岗位知识技能","负责成分制备","根据遵义市相关政策提供待遇"]
[64,"遵义市中心血站","全额事业","覃诗竹","085128634566","331335911@qq.com","输血研究室工作人员","输血技术及相关专业","硕士研究生及以上",1,"熟练掌握专业相关岗位知识技能","负责输血技术研究","根据遵义市相关政策提供待遇"]
[65,"遵义市社会救助局","全额事业","邓世仪",85123119565,"675245220@qq.com","信息核对平台管理","计算机应用技术","硕士研究生及以上",1,"从事核对平台软件应用及信息比对","无","按人社部门核定的工资待遇执行"]
[66,"遵义市社会救助局","全额事业","邓世仪","085123119565","675245220@qq.com","社会工作","社会工作","硕士研究生及以上",2,"从事社会行政管理和社会服务","无","按人社部门核定的工资待遇执行"]
[67,"遵义市杨粲墓博物馆","全额事业","李小飞","15985656509","626837353@qq.com","土司文化研究","考古及博物馆历史","硕士研究生",1,"具有中华人民共和国国籍，身体健康，具有较高的职业道德素质、扎实的专业理论基础，符合招聘条件的国内高校硕士研究生及以上学历的毕业生。2、年龄35周岁（1982年9月30日以后出生）以下，博士研究生年龄可放宽至40岁（1977年9月30日以后出生）；3、具备与所招聘专业岗位一致或相近的专业学历；","具有陈列馆陈列及研究的相关经验","事业单位在编"]
[68,"遵义市文化馆","全额事业","张菊","15985271998","626837353@qq.com","舞蹈","舞蹈","硕士研究生",1,"具有丰富的舞台经验","无","事业单位在编"]
[69,"遵义市公安局信息中心","全额事业","苏鹏","085128323283","1312478374@qq.com","专业技术岗位","生物医学工程","硕士研究生及以上",1,"应届毕业生","从事公安辅助工作，主要涉及DNA相关。","按照事业编制人员工资待遇发放。"]
[70,"遵义市公安局信息中心","全额事业","苏鹏","085128323283","1312478374@qq.com","专业技术岗位","仪器科学与技术","硕士研究生及以上",1,"应届毕业生","从事公安辅助工作，主要涉及设备管理与维护。","按照事业编制人员工资待遇发放。"]
[71,"遵义市公安局信息中心","全额事业","苏鹏","085128323283","1312478374@qq.com","专业技术岗位","化学工程与技术","硕士研究生及以上",1,"应届毕业生","从事公安辅助工作，主要涉及微量物证检验。","按照事业编制人员工资待遇发放。"]
[72,"遵义市公安局信息中心","全额事业","苏鹏","085128323283","1312478374@qq.com","专业技术岗位","心理学","硕士研究生及以上",1,"应届毕业生","从事公安辅助工作，主要涉及心理测试。","按照事业编制人员工资待遇发放。"]
[73,"遵义市公安局信息中心","全额事业","苏鹏","085128323283","1312478374@qq.com","专业技术岗位","电子科学与技术","硕士研究生及以上",1,"应届毕业生","从事公安辅助工作，主要涉及电子物证检验。","按照事业编制人员工资待遇发放。"]
[74,"遵义市公安局信息中心","全额事业","苏鹏","085128323283","1312478374@qq.com","专业技术岗位","计算机科学与技术","硕士研究生及以上",1,"应届毕业生","从事公安辅助工作，主要涉及刑事科学技术管理。","按照事业编制人员工资待遇发放。"]
[75,"遵义市公安局信息中心","全额事业","苏鹏","085128323283","1312478374@qq.com","专业技术岗位","软件工程","硕士研究生及以上",2,"应届毕业生","从事公安辅助工作，主要涉及系统组件与开发。","按照事业编制人员工资待遇发放。"]
[76,"遵义市公安局信息中心","全额事业","苏鹏","085128323283","1312478374@qq.com","专业技术岗位","信息与通信工程","硕士研究生及以上",2,"应届毕业生","从事公安辅助工作，主要涉及数据库、网络维护。","按照事业编制人员工资待遇发放。"]
[77,"遵义市大剧院管理服务中心","全额事业","李华","15185288900","626837353@qq.com","综合科科员","艺术设计专业","硕士研究生",1,"无","大型艺术活动的设计能力","事业单位在编人员"]
[78,"遵义市精神病院","全额事业","汪廷军","085127722356","411350002@qq.com","医生","精神卫生","硕士研究生",10,"有工作经验者优先","从事精神科临床工作","按国家在职人员规定标准"]
[79,"遵义市人大法制研究中心","全额事业","翟晓钰","085128217583","rencai520@126.com","管理岗位","法学","硕士研究生",2,"无","从事地方立法服务工作","国家事业单位待遇"]
[80,"遵义水利水电勘测设计研究院","差额事业","胡婧","085128683006","3500410034@qq.com","专业技术人员","摄影测量与遥感","硕士研究生及以上",1,"有工作经验者优先","野外航空测量相关工作","税前5000元"]
[81,"遵义水利水电勘测设计研究院","差额事业","胡婧","085128683006","3500410034@qq.com","专业技术人员","测绘工程","全日制本科及以上",2,"有工作经验者优先","野外测绘相关工作","非编制内人员，税前4800元"]
[82,"遵义水利水电勘测设计研究院","差额事业","胡婧","085128683006","3500410034@qq.com","专业技术人员","工程地质","硕士研究生及以上",1,"有工作经验者优先","工程地质相关工作","税前5000元"]
[83,"遵义水利水电勘测设计研究院","差额事业","胡婧","085128683006","3500410034@qq.com","专业技术人员","计算机编程相关专业","硕士研究生及以上",1,"有工作经验者优先","计算机相关工作","税前5000元"]
[84,"遵义水利水电勘测设计研究院","差额事业","胡婧","085128683006","3500410034@qq.com","专业技术人员","园林景观设计","全日制本科及以上",1,"有工作经验者优先","园林景观相关工作","非编制内人员，税前4800元"]
[85,"遵义水利水电勘测设计研究院","差额事业","胡婧","085128683006","3500410034@qq.com","专业技术人员","热能与动力工程专业","全日制本科及以上",1,"有工作经验者优先","热能与动力相关设计工作","非编制内人员，税前4800元"]
[86,"遵义水利水电勘测设计研究院","差额事业","胡婧","085128683006","3500410034@qq.com","专业技术人员","工民建","全日制本科及以上",1,"有工作经验者优先","工民建相关设计工作","非编制内人员，税前4800元"]
[87,"遵义水利水电勘测设计研究院","差额事业","胡婧","085128683006","3500410034@qq.com","专业技术人员","施工管理相关专业","全日制本科及以上",2,"有工作经验者优先","施工管理相关工作（5年以上施工管理工作经验）","非编制内人员，待遇面议"]
[88,"遵义市域名和信息管理中心","全额事业","阙福建","085128629295","rencai520@126.com","管理人员","行政法律法规类","硕士研究生及以上",1,"往届毕业生","行政审批制度改革、权责清单制度建设等业务","事业管理岗位工资"]
[89,"遵义市域名和信息管理中心","全额事业","阙福建","085128629295","rencai520@126.com","管理人员","计算机类","硕士研究生及以上",1,"往届毕业生","信息技术或网站建设维护及网络安全","事业管理岗位工资"]
[90,"遵义市第五人民医院（遵义医专附院）","差额事业","杨兴良","085128438305","rencai520@126.com","内科医师","消化内科","博士研究生",1,"具备执业医师资格临床相关工作经历",null,"事业单位工资待遇，并按要求享受遵义市及医院人才引进相关待遇"]
[91,"遵义市第五人民医院（遵义医专附院）","差额事业","杨兴良","085128438305","rencai520@126.com","内科医师","呼吸或心内","博士研究生",1,"具备执业医师资格临床相关工作经历",null,"事业单位工资待遇，并按要求享受遵义市及医院人才引进相关待遇"]
[92,"遵义市第五人民医院（遵义医专附院）","差额事业","杨兴良","085128438305","rencai520@126.com","内科医师","神经内科","博士研究生",1,"具备执业医师资格临床相关工作经历",null,"事业单位工资待遇，并按要求享受遵义市及医院人才引进相关待遇"]
[93,"遵义市第五人民医院（遵义医专附院）","差额事业","杨兴良","085128438305","rencai520@126.com","外科医师","骨外科","博士研究生",1,"具备执业医师资格临床相关工作经历",null,"事业单位工资待遇，并按要求享受遵义市及医院人才引进相关待遇"]
[94,"遵义市第五人民医院（遵义医专附院）","差额事业","杨兴良","085128438305","rencai520@126.com","外科医师","泌尿外科","博士研究生",1,"具备执业医师资格临床相关工作经历",null,"事业单位工资待遇，并按要求享受遵义市及医院人才引进相关待遇"]
[95,"遵义市第五人民医院（遵义医专附院）","差额事业","杨兴良","085128438305","rencai520@126.com","外科医师","神经外科","博士研究生",1,"具备执业医师资格临床相关工作经历",null,"事业单位工资待遇，并按要求享受遵义市及医院人才引进相关待遇"]
[96,"遵义市第五人民医院（遵义医专附院）","差额事业","杨兴良","085128438305","rencai520@126.com","妇产科医师","妇产科方向","博士研究生",1,"具备执业医师资格临床相关工作经历",null,"事业单位工资待遇，并按要求享受遵义市及医院人才引进相关待遇"]
[97,"遵义市第五人民医院（遵义医专附院）","差额事业","杨兴良","085128438305","rencai520@126.com","儿科医师","儿科方向","博士研究生",1,"具备执业医师资格临床相关工作经历",null,"事业单位工资待遇，并按要求享受遵义市及医院人才引进相关待遇"]
[98,"遵义市第五人民医院（遵义医专附院）","差额事业","杨兴良","085128438305","rencai520@126.com","内科医师 ","神经内科","硕士研究生",1,"具备执业医师资格临床相关工作经历",null,"事业单位工资待遇，并按要求享受遵义市及医院人才引进相关待遇"]
[99,"遵义市第五人民医院（遵义医专附院）","差额事业","杨兴良","085128438305","rencai520@126.com","内科医师 ","心内科","硕士研究生",1,"具备执业医师资格临床相关工作经历",null,"事业单位工资待遇，并按要求享受遵义市及医院人才引进相关待遇"]
[100,"遵义市第五人民医院（遵义医专附院）","差额事业","杨兴良","085128438305","rencai520@126.com","内科医师 ","呼吸内科","硕士研究生",1,"具备执业医师资格临床相关工作经历",null,"事业单位工资待遇，并按要求享受遵义市及医院人才引进相关待遇"]
[101,"遵义市第五人民医院（遵义医专附院）","差额事业","杨兴良","085128438305","rencai520@126.com","内科医师 ","消化内科","硕士研究生",1,"具备执业医师资格临床相关工作经历",null,"事业单位工资待遇，并按要求享受遵义市及医院人才引进相关待遇"]
[102,"遵义市第五人民医院（遵义医专附院）","差额事业","杨兴良","085128438305","rencai520@126.com","外科医师","骨外科","硕士研究生",1,"具备执业医师资格临床相关工作经历",null,"事业单位工资待遇，并按要求享受遵义市及医院人才引进相关待遇"]
[103,"遵义市第五人民医院（遵义医专附院）","差额事业","杨兴良","085128438305","rencai520@126.com","外科医师","神经外科","硕士研究生",1,"具备执业医师资格临床相关工作经历",null,"事业单位工资待遇，并按要求享受遵义市及医院人才引进相关待遇"]
[104,"遵义市第五人民医院（遵义医专附院）","差额事业","杨兴良","085128438305","rencai520@126.com","外科医师","泌尿外科","硕士研究生",1,"具备执业医师资格临床相关工作经历",null,"事业单位工资待遇，并按要求享受遵义市及医院人才引进相关待遇"]
[105,"遵义市第五人民医院（遵义医专附院）","差额事业","杨兴良","085128438305","rencai520@126.com","外科医师","肝胆外科","硕士研究生",1,"具备执业医师资格临床相关工作经历",null,"事业单位工资待遇，并按要求享受遵义市及医院人才引进相关待遇"]
[106,"遵义市第五人民医院（遵义医专附院）","差额事业","杨兴良","085128438305","rencai520@126.com","妇产科医师","妇产科","硕士研究生",1,"具备执业医师资格临床相关工作经历",null,"事业单位工资待遇，并按要求享受遵义市及医院人才引进相关待遇"]
[107,"遵义市第五人民医院（遵义医专附院）","差额事业","杨兴良","085128438305","rencai520@126.com","儿科医师","儿科","硕士研究生",1,"具备执业医师资格临床相关工作经历",null,"事业单位工资待遇，并按要求享受遵义市及医院人才引进相关待遇"]
[108,"遵义市第五人民医院（遵义医专附院）","差额事业","杨兴良","085128438305","rencai520@126.com","康复科医师","康复科","硕士研究生",1,"具备执业医师资格临床相关工作经历",null,"事业单位工资待遇，并按要求享受遵义市及医院人才引进相关待遇"]
[109,"遵义市第五人民医院（遵义医专附院）","差额事业","杨兴良","085128438305","rencai520@126.com","B超医师","临床医学、医学影像","硕士研究生",1,"具备执业医师资格临床相关工作经历",null,"事业单位工资待遇，并按要求享受遵义市及医院人才引进相关待遇"]
[110,"遵义市第五人民医院（遵义医专附院）","差额事业","杨兴良","085128438305","rencai520@126.com","放射科医师","医学影像","硕士研究生",1,"具备执业医师资格临床相关工作经历",null,"事业单位工资待遇，并按要求享受遵义市及医院人才引进相关待遇"]
[111,"遵义市第五人民医院（遵义医专附院）","差额事业","杨兴良","085128438305","rencai520@126.com","介入科医师","介入及相关","硕士研究生",1,"具备执业医师资格临床相关工作经历",null,"事业单位工资待遇，并按要求享受遵义市及医院人才引进相关待遇"]
[112,"遵义市第五人民医院（遵义医专附院）","差额事业","杨兴良","085128438305","rencai520@126.com","肿瘤医师","肿瘤学","硕士研究生",1,"具备执业医师资格临床相关工作经历",null,"事业单位工资待遇，并按要求享受遵义市及医院人才引进相关待遇"]
[113,"遵义市第一人民医院","差额事业","曹小梅","085128920629","188662012@qq.com","消化内科医师","内科学","博士研究生",1,null,"学科带头人、学术带头人","享受人才引进待遇（住房补贴、人才引进费、科研启动资金）"]
[114,"遵义市第一人民医院","差额事业","曹小梅","085128920629","188662013@qq.com","内分泌科医师","内分泌学","博士研究生",1,null,"学科带头人、学术带头人","享受人才引进待遇（住房补贴、人才引进费、科研启动资金）"]
[115,"遵义市第一人民医院","差额事业","曹小梅","085128920629","188662014@qq.com","肾内科医师","肾内学","博士研究生",1,null,"学科带头人、学术带头人","享受人才引进待遇（住房补贴、人才引进费、科研启动资金）"]
[116,"遵义市第一人民医院","差额事业","曹小梅","085128920629","188662015@qq.com","血液科医师","血液科学","博士研究生",1,null,"学科带头人、学术带头人","享受人才引进待遇（住房补贴、人才引进费、科研启动资金）"]
[117,"遵义市第一人民医院","差额事业","曹小梅","085128920629","188662016@qq.com","风湿免疫科医师","免疫学","博士研究生",1,null,"学科带头人、学术带头人","享受人才引进待遇（住房补贴、人才引进费、科研启动资金）"]
[118,"遵义市第一人民医院","差额事业","曹小梅","085128920629","188662017@qq.com","感染科医师","传染病学","博士研究生",1,null,"学科带头人、学术带头人","享受人才引进待遇（住房补贴、人才引进费、科研启动资金）"]
[119,"遵义市第一人民医院","差额事业","曹小梅","085128920629","188662018@qq.com","肝胆胰外科医师","外科学","博士研究生",1,null,"学科带头人、学术带头人","享受人才引进待遇（住房补贴、人才引进费、科研启动资金）"]
[120,"遵义市第一人民医院","差额事业","曹小梅","085128920629","188662019@qq.com","胃肠外科医师","外科学","博士研究生",1,null,"学科带头人、学术带头人","享受人才引进待遇（住房补贴、人才引进费、科研启动资金）"]
[121,"遵义市第一人民医院","差额事业","曹小梅","085128920629","188662020@qq.com","骨科医师","骨科医学","博士研究生",2,null,"学科带头人、学术带头人","享受人才引进待遇（住房补贴、人才引进费、科研启动资金）"]
[122,"遵义市第一人民医院","差额事业","曹小梅","085128920629","188662021@qq.com","乳腺外科","外科学","博士研究生",1,null,"学科带头人、学术带头人","享受人才引进待遇（住房补贴、人才引进费、科研启动资金）"]
[123,"遵义市第一人民医院","差额事业","曹小梅","085128920629","188662022@qq.com","心脏大血管外科","心血管外科学","博士研究生",2,null,"学科带头人、学术带头人","享受人才引进待遇（住房补贴、人才引进费、科研启动资金）"]
[124,"遵义市第一人民医院","差额事业","曹小梅","085128920629","188662023@qq.com","烧伤/整形外科","外科学","博士研究生",1,null,"学科带头人、学术带头人","享受人才引进待遇（住房补贴、人才引进费、科研启动资金）"]
[125,"遵义市第一人民医院","差额事业","曹小梅","085128920629","188662024@qq.com","神经外科医师","外科学","博士研究生",2,null,"学科带头人、学术带头人","享受人才引进待遇（住房补贴、人才引进费、科研启动资金）"]
[126,"遵义市第一人民医院","差额事业","曹小梅","085128920629","188662025@qq.com","手外科","外科学","博士研究生",1,null,"学科带头人、学术带头人","享受人才引进待遇（住房补贴、人才引进费、科研启动资金）"]
[127,"遵义市第一人民医院","差额事业","曹小梅","085128920629","188662026@qq.com","妇产科医师","妇产科学／生殖医学","博士研究生",4,null,"学科带头人、学术带头人","享受人才引进待遇（住房补贴、人才引进费、科研启动资金）"]
[128,"遵义市第一人民医院","差额事业","曹小梅","085128920629","188662027@qq.com","儿内科医师","内科学","博士研究生",2,null,"学科带头人、学术带头人","享受人才引进待遇（住房补贴、人才引进费、科研启动资金）"]
[129,"遵义市第一人民医院","差额事业","曹小梅","085128920629","188662028@qq.com","儿外科医师","小二外科学/新生儿科","博士研究生",2,null,"学科带头人、学术带头人","享受人才引进待遇（住房补贴、人才引进费、科研启动资金）"]
[130,"遵义市第一人民医院","差额事业","曹小梅","085128920629","188662029@qq.com","肛肠科","肛肠医学专业","博士研究生",1,null,"学科带头人、学术带头人","享受人才引进待遇（住房补贴、人才引进费、科研启动资金）"]
[131,"遵义市第一人民医院","差额事业","曹小梅","085128920629","188662030@qq.com","中医科医师","中医类","博士研究生",1,null,"学科带头人、学术带头人","享受人才引进待遇（住房补贴、人才引进费、科研启动资金）"]
[132,"遵义市第一人民医院","差额事业","曹小梅","085128920629","188662031@qq.com","疼痛科医师","疼痛相关专业","博士研究生",1,null,"学科带头人、学术带头人","享受人才引进待遇（住房补贴、人才引进费、科研启动资金）"]
[133,"遵义市第一人民医院","差额事业","曹小梅","085128920629","188662032@qq.com","口腔科医师","口腔医学","博士研究生",1,null,"学科带头人、学术带头人","享受人才引进待遇（住房补贴、人才引进费、科研启动资金）"]
[134,"遵义市第一人民医院","差额事业","曹小梅","085128920629","188662033@qq.com","皮肤科医师","皮肤病性病专业","博士研究生",1,null,"学科带头人、学术带头人","享受人才引进待遇（住房补贴、人才引进费、科研启动资金）"]
[135,"遵义市第一人民医院","差额事业","曹小梅","085128920629","188662034@qq.com","康复科医师","康复医学","博士研究生",1,null,"学科带头人、学术带头人","享受人才引进待遇（住房补贴、人才引进费、科研启动资金）"]
[136,"遵义市第一人民医院","差额事业","曹小梅","085128920629","188662035@qq.com","病理科医师","临床医学/病理学与病理生理学","博士研究生",2,null,"学科带头人、学术带头人","享受人才引进待遇（住房补贴、人才引进费、科研启动资金）"]
[137,"遵义市第一人民医院","差额事业","曹小梅","085128920629","188662036@qq.com","超声科医师","医学影像专业\n（超声方向）","博士研究生",1,null,"学科带头人、学术带头人","享受人才引进待遇（住房补贴、人才引进费、科研启动资金）"]
[138,"遵义市第一人民医院","差额事业","曹小梅","085128920629","188662037@qq.com","介入科","介入医学","博士研究生",1,null,"学科带头人、学术带头人","享受人才引进待遇（住房补贴、人才引进费、科研启动资金）"]
[139,"遵义市第一人民医院","差额事业","曹小梅","085128920629","188662038@qq.com","生殖医学中心","岗位相关专业","博士研究生",2,null,"中心负责人","享受人才引进待遇（住房补贴、人才引进费、科研启动资金）"]
[140,"遵义市第一人民医院","差额事业","曹小梅","085128920629","188662039@qq.com","分子诊断中心","岗位相关专业","博士研究生",2,null,"中心负责人","享受人才引进待遇（住房补贴、人才引进费、科研启动资金）"]
[141,"遵义市第一人民医院","差额事业","曹小梅","085128920629","188662040@qq.com","遵义市儿童急救中心","岗位相关专业","博士研究生",2,null,"中心负责人","享受人才引进待遇（住房补贴、人才引进费、科研启动资金）"]
[142,"遵义市第一人民医院","差额事业","曹小梅","085128920629","188662041@qq.com","遵义市儿童医学中心","岗位相关专业","博士研究生",2,null,"中心负责人","享受人才引进待遇（住房补贴、人才引进费、科研启动资金）"]
[143,"遵义市第一人民医院","差额事业","曹小梅","085128920629","188662042@qq.com","遵义市急救医疗救援中心","岗位相关专业","博士研究生",2,null,"中心负责人","享受人才引进待遇（住房补贴、人才引进费、科研启动资金）"]
[144,"遵义市第一人民医院","差额事业","曹小梅","085128920629","188662043@qq.com","遵义市急救医学中心","岗位相关专业","博士研究生",2,null,"中心负责人","享受人才引进待遇（住房补贴、人才引进费、科研启动资金）"]
[145,"遵义市第一人民医院","差额事业","曹小梅","085128920629","188662044@qq.com","遵义市高危孕产妇诊疗中心","岗位相关专业","博士研究生",2,null,"中心负责人","享受人才引进待遇（住房补贴、人才引进费、科研启动资金）"]
[146,"遵义市第一人民医院","差额事业","曹小梅","085128920629","188662045@qq.com","遵义市新生儿救治中心","岗位相关专业","博士研究生",2,null,"中心负责人","享受人才引进待遇（住房补贴、人才引进费、科研启动资金）"]
[147,"遵义市第一人民医院","差额事业","曹小梅","085128920629","188662046@qq.com","遵义市儿童缺陷康复中心","岗位相关专业","博士研究生",2,null,"中心负责人","享受人才引进待遇（住房补贴、人才引进费、科研启动资金）"]
[148,"遵义市第一人民医院","差额事业","曹小梅","085128920629","188662047@qq.com","遵义市肿瘤中心","岗位相关专业","博士研究生",2,null,"中心负责人","享受人才引进待遇（住房补贴、人才引进费、科研启动资金）"]
[149,"遵义市第一人民医院","差额事业","曹小梅","085128920629","188662048@qq.com","遵义市眼科中心","岗位相关专业","博士研究生",2,null,"中心负责人","享受人才引进待遇（住房补贴、人才引进费、科研启动资金）"]
[150,"遵义市第一人民医院","差额事业","曹小梅","085128920629","188662049@qq.com","遵义市心脏病中心","岗位相关专业","博士研究生",2,null,"中心负责人","享受人才引进待遇（住房补贴、人才引进费、科研启动资金）"]
[151,"遵义市第一人民医院","差额事业","曹小梅","085128920629","188662050@qq.com","遵义市消化病中心","岗位相关专业","博士研究生",2,null,"中心负责人","享受人才引进待遇（住房补贴、人才引进费、科研启动资金）"]
[152,"遵义市第一人民医院","差额事业","曹小梅","085128920629","188662051@qq.com","遵义市呼吸疾病诊疗中心","岗位相关专业","博士研究生",2,null,"中心负责人","享受人才引进待遇（住房补贴、人才引进费、科研启动资金）"]
[153,"遵义市第一人民医院","差额事业","曹小梅","085128920629","188662052@qq.com","遵义市眩晕中心","岗位相关专业","博士研究生",2,null,"中心负责人","享受人才引进待遇（住房补贴、人才引进费、科研启动资金）"]
[154,"遵义市第一人民医院","差额事业","曹小梅","085128920629","188662053@qq.com","妇产科医师","妇产科学／生殖医学","硕士研究生",10,"具有相应执业医师资格，2014年及以后毕业的按国家规定需住院医师规范化培训合格。",null,"根据遵义市相关待遇政策执行"]
[155,"遵义市第一人民医院","差额事业","曹小梅","085128920629","188662054@qq.com","儿内科医师","内科学","硕士研究生",10,"具有相应执业医师资格，2015年及以后毕业的按国家规定需住院医师规范化培训合格。",null,"根据遵义市相关待遇政策执行"]
[156,"遵义市第一人民医院","差额事业","曹小梅","085128920629","188662055@qq.com","儿外科医师","外科学","硕士研究生",5,"具有相应执业医师资格，2016年及以后毕业的按国家规定需住院医师规范化培训合格。",null,"根据遵义市相关待遇政策执行"]
[157,"遵义市第一人民医院","差额事业","曹小梅","085128920629","188662056@qq.com","呼吸内科","内科学","硕士研究生",2,"具有相应执业医师资格，2016年及以后毕业的按国家规定需住院医师规范化培训合格。",null,"根据遵义市相关待遇政策执行"]
[158,"遵义市第一人民医院","差额事业","曹小梅","085128920629","188662057@qq.com","肿瘤科","医学影像学、医学影像技术、工程物理","硕士研究生",2,"应、往届生均可，往届生须具有放射技师及以上资格。",null,"根据遵义市相关待遇政策执行"]
[159,"遵义市第一人民医院","差额事业","曹小梅","085128920629","188662058@qq.com","神经内科","神经病学","硕士研究生",2,"具有相应执业医师资格（2014年及以后毕业的按国家规定需住院医师规范化培训合格）。",null,"根据遵义市相关待遇政策执行"]
[160,"遵义市第一人民医院","差额事业","曹小梅","085128920629","188662059@qq.com","心血管内科","心血管内科","硕士研究生",4,"具有相应执业医师资格（2014年及以后毕业的按国家规定需住院医师规范化培训合格）。",null,"根据遵义市相关待遇政策执行"]
[161,"遵义市第一人民医院","差额事业","曹小梅","085128920629","188662060@qq.com","老年病科","临床医学","硕士研究生",2,"具有相应执业医师资格（2014年及以后毕业的按国家规定需住院医师规范化培训合格）。",null,"根据遵义市相关待遇政策执行"]
[162,"遵义市第一人民医院","差额事业","曹小梅","085128920629","188662061@qq.com","骨科一病区","外科学（骨科方向）","硕士研究生",1,"具有相应执业医师资格（2014年及以后毕业的按国家规定需住院医师规范化培训合格）。",null,"根据遵义市相关待遇政策执行"]
[163,"遵义市第一人民医院","差额事业","曹小梅","085128920629","188662062@qq.com","骨科二病区","放射类（医学影像技术、医学影像学、放射治疗技术）","硕士研究生",1,"具有放射技师及以上资格优先。",null,"根据遵义市相关待遇政策执行"]
[164,"遵义市第一人民医院","差额事业","曹小梅","085128920629","188662063@qq.com","胸外科","外科学（胸外科方向）","硕士研究生",2,"具有相应执业医师资格（2014年及以后毕业的按国家规定需住院医师规范化培训合格）。",null,"根据遵义市相关待遇政策执行"]
[165,"遵义市第一人民医院","差额事业","曹小梅","085128920629","188662064@qq.com","心脏外科","外科学（心脏外科方向）","硕士研究生",2,"具有相应执业医师资格（2014年及以后毕业的按国家规定需住院医师规范化培训合格）。",null,"根据遵义市相关待遇政策执行"]
[166,"遵义市第一人民医院","差额事业","曹小梅","085128920629","188662065@qq.com","手外科","临床医学","硕士研究生",1,"具有相应执业医师资格（2014年及以后毕业的按国家规定需住院医师规范化培训合格）。",null,"根据遵义市相关待遇政策执行"]
[167,"遵义市第一人民医院","差额事业","曹小梅","085128920629","188662066@qq.com","乳甲外科","外科学","硕士研究生",1,"具有相应执业医师资格（2014年及以后毕业的按国家规定需住院医师规范化培训合格），英语六级及以上，985或211学校毕业。",null,"根据遵义市相关待遇政策执行"]
[168,"遵义市第一人民医院","差额事业","曹小梅","085128920629","188662067@qq.com","泌尿外科","外科学（泌尿外科方向）","硕士研究生",4,"具有相应执业医师资格（2014年及以后毕业的按国家规定需住院医师规范化培训合格）。",null,"根据遵义市相关待遇政策执行"]
[169,"遵义市第一人民医院","差额事业","曹小梅","085128920629","188662068@qq.com","中医科","中医学、中西医结合","硕士研究生",2,"具有相应执业医师资格（2014年及以后毕业的按国家规定需住院医师规范化培训合格），研究生学历要求所学专业为中医内科、中西医结合内科方向各专业。",null,"根据遵义市相关待遇政策执行"]
[170,"遵义市第一人民医院","差额事业","曹小梅","085128920629","188662069@qq.com","中医科","针灸推拿学","硕士研究生",1,"具有相应执业医师资格（2014年及以后毕业的按国家规定需住院医师规范化培训合格）。",null,"根据遵义市相关待遇政策执行"]
[171,"遵义市第一人民医院","差额事业","曹小梅","085128920629","188662070@qq.com","中医科","中医学、中西医结合","硕士研究生",1,"具有相应执业医师资格（2014年及以后毕业的按国家规定需住院医师规范化培训合格），研究生学历要求所学专业为中医妇科、中西医结合妇科方向各专业。",null,"根据遵义市相关待遇政策执行"]
[172,"遵义市第一人民医院","差额事业","曹小梅","085128920629","188662071@qq.com","中医科","中医学、中西医结合","硕士研究生",1,"具有相应执业医师资格（2014年及以后毕业的按国家规定需住院医师规范化培训合格），研究生学历要求所学专业为中医儿科、中西医结合儿科方向各专业。",null,"根据遵义市相关待遇政策执行"]
[173,"遵义市第一人民医院","差额事业","曹小梅","085128920629","188662072@qq.com","中医肛肠科","中医肛肠、中医胃肠、中医消化、中医内科","硕士研究生",2,"具有相应执业医师资格（2014年及以后毕业的按国家规定需住院医师规范化培训合格）。",null,"根据遵义市相关待遇政策执行"]
[174,"遵义市第一人民医院","差额事业","曹小梅","085128920629","188662073@qq.com","介入科","临床医学","硕士研究生",2,"具有相应执业医师资格（2014年及以后毕业的按国家规定需住院医师规范化培训合格）。",null,"根据遵义市相关待遇政策执行"]
[175,"遵义市第一人民医院","差额事业","曹小梅","085128920629","188662074@qq.com","营养科","临床医学","硕士研究生",1,"具有相应执业医师资格（2014年及以后毕业的按国家规定需住院医师规范化培训合格）。",null,"根据遵义市相关待遇政策执行"]
[176,"遵义市第一人民医院","差额事业","曹小梅","085128920629","188662075@qq.com","病理科","临床医学/病理学与病理生理学","硕士研究生",2,"具有相应执业医师资格（2014年及以后毕业的按国家规定需住院医师规范化培训合格）。",null,"根据遵义市相关待遇政策执行"]
[177,"遵义市第一人民医院","差额事业","曹小梅","085128920629","188662076@qq.com","静脉配置中心","药学、药物制剂","硕士研究生",2,"具有药师及以上资格。",null,"根据遵义市相关待遇政策执行"]
[178,"遵义市第一人民医院","差额事业","曹小梅","085128920629","188662077@qq.com","检验科","生物信息学","硕士研究生",1,"应、往届生均可，往届生须具有检验技师及以上资格。",null,"根据遵义市相关待遇政策执行"]
[179,"遵义市第一人民医院","差额事业","曹小梅","085128920629","188662078@qq.com","检验科","遗传学","硕士研究生",1,"应、往届生均可，往届生须具有检验技师及以上资格。",null,"根据遵义市相关待遇政策执行"]
[180,"遵义市第一人民医院","差额事业","曹小梅","085128920629","188662079@qq.com","中心实验室","药理学、植物学（植物化学方向）","硕士研究生",2,"英语四级及以上。",null,"根据遵义市相关待遇政策执行"]
[181,"遵义市第一人民医院","差额事业","曹小梅","085128920629","188662080@qq.com","心电图室","临床医学","硕士研究生",1,"具有相应执业医师资格（2014年及以后毕业的按国家规定需住院医师规范化培训合格）。",null,"根据遵义市相关待遇政策执行"]
[182,"遵义市第一人民医院","差额事业","曹小梅","085128920629","188662081@qq.com","护理人员","护理","硕士研究生",1,"需具有护士执业资格及血透、急诊、重症监护、手术室、肿瘤专科护士培训合格证。",null,"根据遵义市相关待遇政策执行"]
[183,"遵义市第一人民医院","差额事业","曹小梅","085128920629","188662082@qq.com","医务部","全科医学、临床医学","硕士研究生",2,"具有相关执业医师资格（2014年及以后毕业的按国家规定需住院医师规范化培训合格）。",null,"根据遵义市相关待遇政策执行"]
[184,"遵义市第一人民医院","差额事业","曹小梅","085128920629","188662083@qq.com","GCP办公室","临床医学、药学","硕士研究生",1,null,null,"根据遵义市相关待遇政策执行"]
[185,"遵义市第一人民医院","差额事业","曹小梅","085128920629","188662084@qq.com","GCP办公室","药学、药理学及相关专业","硕士研究生",1,null,null,"根据遵义市相关待遇政策执行"]
[186,"遵义市规划信息中心","差额事业","袁仕件",18786993708,"1306016932@qq.com","专业技术","计算机软件与理论、计算机应用技术","硕士研究生及以上",1,null,"信息系统开发与维护","按现行事业单位有关政策执行"]
[187,"遵义市规划信息中心","差额事业","袁仕件",18786993708,"1306016932@qq.com","专业技术","宪法学与行政法学、城市规划与设计","硕士研究生及以上",1,null,"规划批后管理与技术审查","按现行事业单位有关政策执行"]

{"sheet":"第一类，县（市、区）事业单位职位表 (2)","index":1,"n_rows":263,"n_cols":13,"rows_kept":263,"merged":[[0,0,0,12],[2,0,2,12],[34,0,34,12],[50,0,50,12],[78,0,78,12],[113,0,113,12],[142,0,142,12],[161,0,161,12],[174,0,174,12],[185,0,185,12],[195,0,195,12],[204,0,204,12],[208,0,208,12],[221,0,221,12],[243,0,243,12]]}
["表二：遵义市2017年赴部分高校人才招聘需求目录（县、市、区事业单位）"]
["序号","单位名称","单位性质","单位联系人","联系电话","邮箱","需求岗位名称","需求专业(职称)","学历要求","数量","履历要求","需求描述","提供待遇"]
["红花岗区"]
[1,"遵义市红花岗区水利水电工程技术服务站","全额事业","王凤霞","085128222253","2673999248@qq.com","专业技术","水利工程专业","硕士研究生及以上",1,"无","水利工程建设和技术服务","全额事业单位待遇"]
[2,"红花岗区市政养护处","全额事业","张译心","085128255229","549773486@qq.com","市政公用管理科","工程造价专业","硕士研究生及以上",1,"无","熟悉工程预决工作流程，能独立完成工程项目相关的预算和审计工作。","事业单位待遇"]
[3,"红花岗区市政养护处","全额事业","张译心","085128255229","549773486@qq.com","市政公用管理科","道路与桥梁专业","硕士研究生及以上",1,"无","熟悉城市道路、桥梁及隧道工程的勘探设计、试验检测、养护维修的技术与管理工作。","事业单位待遇"]
[4,"红花岗区财政投资管理服务中心","全额事业","廖婧","085128223150","839814807@qq.com","评审中心造价工作人员","土建或工程造价专业","硕士研究生及以上",1,"无","承担工程预算审核","参照全额拨款事业在编人员待遇"]
[5,"遵义市红花岗区人民医院","差额事业","唐昌慈","085128220264","1960874938@qq.com","心内科医师","内科学（心内科方向）","硕士研究生及以上",1,"无","需具备执业医师资格","事业单位待遇"]
[6,"遵义市红花岗区人民医院","差额事业","唐昌慈","085128220264","1960874938@qq.com","内分泌科医师","内科学（内分泌方向）","硕士研究生及以上",1,"无","需具备执业医师资格","事业单位待遇"]
[7,"遵义市红花岗区人民医院","差额事业","唐昌慈","085128220264","1960874938@qq.com","呼吸内科医师","内科学（呼吸内科方向）","硕士研究生及以上",1,"无","需具备执业医师资格","事业单位待遇"]
[8,"遵义市红花岗区人民医院","差额事业","唐昌慈","085128220264","1960874938@qq.com","神经内科医师","神经病学","硕士研究生及以上",1,"无","需具备执业医师资格","事业单位待遇"]
[9,"遵义市红花岗区人民医院","差额事业","唐昌慈","085128220264","1960874938@qq.com","消化内科医师","内科学（消化内科方向）","硕士研究生及以上",1,"无","需具备执业医师资格","事业单位待遇"]
[10,"遵义市红花岗区人民医院","差额事业","唐昌慈","085128220264","1960874938@qq.com","重病医学科医师","急诊医学、内科学或外科学均可","硕士研究生及以上",1,"无","需具备执业医师资格","事业单位待遇"]
[11,"遵义市红花岗区人民医院","差额事业","唐昌慈","085128220264","1960874938@qq.com","中医科医师","中医学","硕士研究生及以上",1,"无","需具备执业医师资格","事业单位待遇"]
[12,"遵义市红花岗区人民医院","差额事业","唐昌慈","085128220264","1960874938@qq.com","康复医学科医师","中医学类（康复医学方向）","硕士研究生及以上",1,"无","需具备执业医师资格","事业单位待遇"]
[13,"遵义市红花岗区人民医院","差额事业","唐昌慈","085128220264","1960874938@qq.com","超声科医师","影像医学与核医学","硕士研究生及以上",1,"无","需具备执业医师资格","事业单位待遇"]
[14,"遵义市红花岗区人民医院","差额事业","唐昌慈","085128220264","1960874938@qq.com","病理科医师","临床医学或卫生毒理学","硕士研究生及以上",1,"无","需具备执业医师资格","事业单位待遇"]
[15,"遵义市红花岗区人民医院","差额事业","唐昌慈","085128220264","1960874938@qq.com","普外科医师","外科学（普外方向）","硕士研究生及以上",1,"无","需具备执业医师资格","事业单位待遇"]
[16,"遵义市红花岗区人民医院","差额事业","唐昌慈","085128220264","1960874938@qq.com","骨外科医师","外科学（骨外方向）","硕士研究生及以上",1,"无","需具备执业医师资格","事业单位待遇"]
[17,"遵义市红花岗区人民医院","差额事业","唐昌慈","085128220264","1960874938@qq.com","儿科医师","儿科学","硕士研究生及以上",1,"无","需具备执业医师资格","事业单位待遇"]
[18,"遵义市红花岗区人民医院","差额事业","唐昌慈","085128220264","1960874938@qq.com","麻醉科医师","麻醉学","硕士研究生及以上",1,"无","需具备执业医师资格","事业单位待遇"]
[19,"遵义市红花岗区人民医院","差额事业","唐昌慈","085128220264","1960874938@qq.com","检验技师","医学检验","硕士研究生及以上",1,"无","需具备执业医师资格","事业单位待遇"]
[20,"遵义市红花岗区人民医院","差额事业","唐昌慈","085128220264","1960874938@qq.com","妇产科医师","妇产科学","硕士研究生及以上",1,"无","需具备执业医师资格","事业单位待遇"]
[21,"红花岗区海龙镇财政所","全额事业","孙未章","085128910034","2456455226@qq.com","财政所会计","会计","硕士研究生及以上",1,"无","熟悉相关财务业务知识","事业编制待遇"]
[22,"红花岗区海龙镇财政所","全额事业","孙未章","085128910034","2456455226@qq.com","财政所工作人员","经济学","硕士研究生及以上",1,"无","熟悉经济学相关知识","事业编制待遇"]
[23,"遵义市骨科医院","差额事业","李玉红","085128835801","460544693@qq.com","专业技术","临床医学","硕士研究生及以上",8,"无","内科2人、骨外科4人、普外2人均需具备执业医师资格","事业单位待遇"]
[24,"遵义市骨科医院","差额事业","李玉红","085128835801","460544693@qq.com","专业技术","医学影像","硕士研究生及以上",3,"无","医学影像2人、B超1人。均需具备执业医师资格","事业单位待遇"]
[25,"遵义市骨科医院","差额事业","李玉红","085128835801","460544693@qq.com","专业技术","临床医学","硕士研究生及以上",1,"无","心电图1人。需具备执业医师资格","事业单位待遇"]
[26,"遵义市骨科医院","差额事业","李玉红","085128835801","460544693@qq.com","专业技术","医学检验","硕士研究生及以上",2,"无","需具备执业医师资格","事业单位待遇"]
[27,"遵义市骨科医院","差额事业","李玉红","085128835801","460544693@qq.com","专业技术","麻醉学","硕士研究生及以上",1,"无","需具备执业医师资格","事业单位待遇"]
[28,"遵义市骨科医院","差额事业","李玉红","085128835801","460544693@qq.com","专业技术","中医学","硕士研究生及以上",2,"无","需具备执业医师资格","事业单位待遇"]
[29,"遵义市骨科医院","差额事业","李玉红","085128835801","460544693@qq.com","专业技术","药学","硕士研究生及以上",1,"无","需具备执业医师资格","事业单位待遇"]
[30,"遵义市红花岗区重点水源工程管理局","全额事业","王凤霞","085128222253","2673999248@qq.com","专业技术","水文学及水资源专业","硕士研究生及以上",1,"无","水资源管理，水政执法等相关工作","全额事业单位待遇"]
[31,"遵义市红花岗区重点水源工程管理局","全额事业","王凤霞","085128222253","2673999248@qq.com","专业技术","水利工程专业","硕士研究生及以上",1,"无","水利工程建设管理工作","全额事业单位待遇"]
["汇川区"]
[32,"汇川机电制造工业园区管理服务中心","全额事业","杨丹","085128684242","1085122047@qq.com","办公室工作人员","法学及相关专业","硕士研究生及以上",1,"无","负责综合协调、文稿起草、公文处理及各类政策、法律、法规咨询等工作。","事业单位待遇"]
[33,"汇川机电制造工业园区管理服务中心","全额事业","杨丹","085128684242","1085122047@qq.com","专业技术人员","统计及相关专业","硕士研究生及以上",1,"无","负责工业经济运行态势监测、分析等工作","事业单位待遇"]
[34,"汇川机电制造工业园区管理服务中心","全额事业","杨丹","085128684242","1085122047@qq.com","工程管理专业技术人员","土木工程及相关专业","硕士研究生及以上",1,"无","负责规划、建设等工程管理工作","事业单位待遇"]
[35,"遵义市汇川区农业技术服务中心","全额事业","杨丹","085128684242","1085122047@qq.com","专业技术","农学大类","硕士研究生及以上",1,"无","具有农学方面的专业知识及相应的工作能力；","事业单位人员待遇"]
[36,"遵义市汇川区农业技术服务中心","全额事业","杨丹","085128684242","1085122047@qq.com","专业技术","中药学","硕士研究生及以上",1,"无","具有中药材方面的专业知识及相应的工作能力；","事业单位人员待遇"]
[37,"遵义海龙屯文化遗产管理局","全额事业","杨丹","085128684242","1085122047@qq.com","办公室工作人员","中国语言文学类","硕士研究生及以上",1,"无","写作、计算机运用等方面具有较高水平。","事业单位人员待遇"]
[38,"遵义海龙屯文化遗产管理局","全额事业","杨丹","085128684242","1085122047@qq.com","博馆管理科工作人员","历史学大类","硕士研究生及以上",2,"无","在规划设计、考古研究等方面具有较高的专业水准。","事业单位人员待遇"]
[39,"遵义市汇川区上海路街道办事处安全生产监督管理站","全额事业","杨丹","085128684242","1085122047@qq.com","管理","中国语言文学类、会计学","硕士研究生及以上",1,"无","具有较强文字功底","事业单位人员待遇"]
[40,"遵义市汇川区板桥镇农业服务中心","全额事业","杨丹","085128684242","1085122047@qq.com","专业技术","农学大类","硕士研究生及以上",1,"无","具有农学方面的专业知识、相应的实践种植技术、办公室业务能力","事业单位人员待遇"]
[41,"遵义市汇川区规划站","全额事业","杨丹","085128684242","1085122047@qq.com","规划管理","建筑学类、城市规划、园林植物与观赏园艺","硕士研究生及以上",2,"无","从事规划编制、规划管理等","事业单位人员待遇"]
[42,"遵义市汇川区对外宣传中心","全额事业","杨丹","085128684242","1085122047@qq.com","新闻策划","新闻学","硕士研究生及以上",1,"无","从事过新闻工作，能够独立完成采访，写作。具有较高的写作策划能力。","事业单位人员待遇"]
[43,"遵义市汇川区山盆镇村镇建设服务中心","全额事业","杨丹","085128684242","1085122047@qq.com","专业技术","城市规划、建筑学类","硕士研究生及以上",1,"无","为村镇建设提供规划设计等技术服务","事业单位人员待遇"]
[44,"遵义市汇川区泗渡镇科技宣教文化信息服务中心","全额事业","杨丹","085128684242","1085122047@qq.com","管理人员","应用经济学类、中国语言文学类","硕士研究生及以上",1,"无","具备经济管理知识或较好的文字功底","事业单位人员待遇"]
[45,"遵义市汇川区域名和信息管理中心","全额事业","杨丹","085128684242","1085122047@qq.com","管理岗","法学类","硕士研究生及以上",1,"无","负责行政审批工作","事业单位人员待遇"]
[46,"遵义市汇川区劳动人事争议仲裁院","全额事业","杨丹","085128684242","1085122047@qq.com","工作人员","法学类","硕士研究生及以上",1,"无","从事劳动人事争议仲裁工作","事业单位人员待遇"]
["播州区"]
[47,"遵义市播州区马蹄镇人力资源和社会保障服务中心","全额事业","牟明","13985245167","1047901773@qq.com","专业技术","不限","硕士研究生及以上",1,"无","无","按照国家工资标准执行"]
[48,"遵义市播州区马蹄镇人力资源和社会保障服务中心","全额事业","牟明","13985245167","1047901773@qq.com","专业技术","法学；哲学；伦理学；逻辑学","硕士研究生及以上",1,"无","无","按照国家工资标准执行"]
[49,"遵义市播州区马蹄镇村镇建设服务中心","全额事业","牟明","13985245167","1047901773@qq.com","专业技术","管理学；管理科学；管理科学与工程","硕士研究生及以上",1,"无","无","按照国家工资标准执行"]
[50,"遵义市播州区新民镇林业站","全额事业","张龙慧","17785240707","1047901773@qq.com","管理","林学；植物保护、园林植物与观赏园艺、森林保护学","硕士研究生及以上",1,"无","无","按照国家工资标准执行"]
[51,"遵义市播州区枫香镇人力资源和社会保障服务中心","全额事业","夏映青","13511893058","1047901773@qq.com","专业技术","行政管理；人口、资源与环境经济学；法律硕士","硕士研究生及以上",1,"无","责任心强，细心，开朗乐观，有良好的沟通能力","按照国家工资标准执行"]
[52,"遵义市播州区铁厂镇林业站","全额事业","李涛先","15285211926","1047901773@qq.com","专业技术","林木遗传育种；森林保护学；森林经理学","硕士研究生及以上",1,"无","无","按照国家工资标准执行"]
[53,"遵义市播州区铁厂镇农业服务中心","全额事业","李涛先","15285211926","1047901773@qq.com","专业技术","兽医学；基础兽医学；预防兽医学","硕士研究生及以上",1,"无","无","按照国家工资标准执行"]
[54,"播州区体育事业中心","全额事业","张嫄","13984210246","1047901773@qq.com","足球教练","运动训练学；体育教育；社会体育","硕士研究生及以上",1,"足球二级运动员优先","无","按照国家工资标准执行"]
[55,"中共遵义市播州区委党校","全额事业","罗艳","18885201656","493609354@qq.com","教师","法学；马克思主义哲学；中共党史","硕士研究生及以上",1,"无","无","按照国家工资标准执行"]
[56,"遵义市播州区铁厂镇科技宣教文化信息服务中心","全额事业","李涛先","15285211926","1047901773@qq.com","专业技术","中国现当代文学；汉语言文学；中国古代文学","硕士研究生及以上",1,"无","无","按照国家工资标准执行"]
[57,"遵义市播州区妇幼保健院","全额事业","络吉发","085127220808","1047901773@qq.com","妇产科医师","临床医学；妇产科学","硕士研究生及以上",1,"无","具备执业医师资格证，全日制本科以上学历须具备副高以上职称","按照国家工资标准执行"]
[58,"遵义市播州区妇幼保健院","全额事业","络吉发","085127220808","1047901773@qq.com","儿科医师","临床医学；儿科学","硕士研究生及以上",1,"无","具备执业医师资格证，全日制本科以上学历须具备副高以上职称","按照国家工资标准执行"]
[59,"遵义市第二十三中学","全额事业","谢伟","13595256598","1047901773@qq.com","生物教师","生物学；水生生物学；微生物学","硕士研究生及以上",1,"无","能适应本岗位教学且能作为学科带头人","按照国家工资标准执行；提供宿舍及就餐食堂"]
[60,"遵义市播州区中等职业学校","全额事业","常磊磊","15902629562","1047901773@qq.com","现代农艺教学与科研人员","畜牧学：动物遗传育种与繁殖；动物营养与饲料科学","硕士研究生及以上",1,"无","我校现代农艺专业教学和科研","按照国家工资标准执行；提供宿舍及就餐食堂"]
[61,"遵义市播州区第五小学","全额事业","五小行政办","085123213859","1047901773@qq.com","语文教师","文学；汉语言文学；中国语言文学","硕士研究生及以上",1,"无","在教育（学校）中担任教学、教研工作","按照国家工资标准执行"]
[62,"遵义市播州区第九小学","全额事业","张文明","18984902341","1047901773@qq.com","信息技术教师","信息与通信工程；信号与信息处理；计算机应用与技术","硕士研究生及以上",1,"无","熟练掌握电脑平面及软件、网络管理、校园信息化管理、电教管理","按照国家工资标准执行"]
[63,"遵义市播州区团溪中学","全额事业","田仁启","189894213088","1047901773@qq.com","语文教师","文学；汉语言文学；中国语言文学","硕士研究生及以上",1,"无","从事高中语文教学","按照国家工资标准执行"]
[64,"遵义市播州区马蹄中学","全额事业","孟声鸿","13984993818","1047901773@qq.com","物理教师","物理学；理论物理；原子与分物理","硕士研究生及以上",1,"无","物理学科教学","按照国家工资标准执行"]
[65,"遵义市播州区直属机关幼儿园","全额事业","王双","13595218826","1047901773@qq.com","幼儿教师","教育学；学前教育学；高等教育学","硕士研究生及以上",1,"无","对0—3岁早期教育有较深的研究","按照国家工资标准执行"]
[66,"遵义市播州区南白镇中心幼儿园","全额事业","江志福","085127369901","1047901773@qq.com","幼儿教师","教育学；学前教育学；高等教育学","硕士研究生及以上",1,"无","具有幼儿教育管理等方面的专业倾向","按照国家工资标准执行"]
[67,"遵义市播州区芶江镇中心幼儿园","全额事业","彭榜维","13885248912","1047901773@qq.com","幼儿教师","教育学；学前教育学；高等教育学","硕士研究生及以上",1,"无","能适应本岗位教学且能作为学科带头人","按照国家工资标准执行"]
[68,"遵义市播州区乌江镇中心幼儿园","全额事业","刘旭","15308522912","1047901773@qq.com","幼儿教师","教育学；学前教育学；高等教育学","硕士研究生及以上",1,"无","能够适应现代幼儿教育发展理念的专业人才","按照国家工资标准执行"]
[69,"遵义市播州区枫香镇中心幼儿园","全额事业","杨玮","13765290355","1047901773@qq.com","幼儿教师","教育学；学前教育学；高等教育学","硕士研究生及以上",1,"无","能够适应现代幼儿教育发展理念的专业人才","按照国家工资标准执行"]
[70,"遵义市播州区团溪镇中心幼儿园","全额事业","史安平","13765290355","1047901773@qq.com","幼儿教师","教育学；学前教育学；高等教育学","硕士研究生及以上",1,"无","能够适应现代幼儿教育发展理念的专业人才","按照国家工资标准执行"]
[71,"遵义市播州区西坪镇中心幼儿园","全额事业","陈万秋","13985201141","1047901773@qq.com","幼儿教师","教育学；学前教育学；高等教育学","硕士研究生及以上",1,"无","能对教师起引领，对学生起教育作用","按照国家工资标准执行"]
[72,"遵义市播州区三合镇中心幼儿园","全额事业","吴成友","13639299005","1047901773@qq.com","幼儿教师","教育学；学前教育学；高等教育学","硕士研究生及以上",4,"无","保育保教工作","按照国家工资标准执行"]
[73,"遵义市播州区鸭溪镇中心幼儿园","全额事业","蔡振军","13765276566","1047901773@qq.com","幼儿教师","教育学；学前教育学；高等教育学","硕士研究生及以上",2,"无","学前教育教育教学管理","按照国家工资标准执行"]
["仁怀市"]
[74,"仁怀市人民医院","全额事业","陈云端","085122220242","zyrhrcb@126.com","临床","医学类","硕士研究生及以上",15,"无","临床岗位\n（初级及以上职称）","按本市事业单位人员的待遇标准执行，并享受人才引进的相关补助政策。"]
[75,"仁怀市人民医院","全额事业","陈云端","085122220242","zyrhrcb@126.com","医技","医学类","硕士研究生及以上",2,"无","初级及以上职称\n（非药剂岗位）","按本市事业单位人员的待遇标准执行，并享受人才引进的相关补助政策。"]
[76,"仁怀市中医院","全额事业","肖莉","085122290099","zyrhrcb@126.com","医学类","医学类","硕士研究生及以上",13,"无","初级及以上职称","按本市事业单位人员的待遇标准执行，并享受人才引进的相关补助政策。"]
[77,"仁怀市中医院","全额事业","肖莉","085122290099","zyrhrcb@126.com","信息管理","计算机\n应用技术","硕士研究生及以上",1,"无","无","按本市事业单位人员的待遇标准执行，并享受人才引进的相关补助政策。"]
[78,"贵州仁怀经济开发区","全额事业","蒋杰","085122308179","zyrhrcb@126.com","专业技术","计算机软件与理论、计算机应用技术专业","硕士研究生及以上",1,"无","熟悉大数据相关工作","按本市事业单位人员的待遇标准执行，并享受人才引进的相关补助政策。"]
[79,"贵州仁怀经济开发区","全额事业","蒋杰","085122308179","zyrhrcb@126.com","专业技术","土木工程类","硕士研究生及以上",1,"无","具有工程造价师资格优先","按本市事业单位人员的待遇标准执行，并享受人才引进的相关补助政策。"]
[80,"贵州仁怀经济开发区","全额事业","蒋杰","085122308179","zyrhrcb@126.com","专业技术","城市规划与设计专业","硕士研究生及以上",1,"无","无","按本市事业单位人员的待遇标准执行，并享受人才引进的相关补助政策。"]
[81,"仁怀市酱香型白酒科研所","全额事业","王迁","085122317699","zyrhrcb@126.com","科研","发酵工程","硕士研究生及以上",1,"无","酱香型白酒科研","按本市事业单位人员的待遇标准执行，并享受人才引进的相关补助政策。"]
[82,"仁怀市酱香型白酒科研所","全额事业","王迁","085122317699","zyrhrcb@126.com","科研","生物化学与分子生物学","硕士研究生及以上",1,"无","酱香型白酒科研","按本市事业单位人员的待遇标准执行，并享受人才引进的相关补助政策。"]
[83,"仁怀市长岗镇人民政府","全额事业","郭建华","085122350013","zyrhrcb@126.com","旅游管理","旅游管理","硕士研究生及以上",1,"无","无","按本市事业单位人员的待遇标准执行，并享受人才引进的相关补助政策。"]
[84,"仁怀市长岗镇人民政府","全额事业","郭建华","085122350013","zyrhrcb@126.com","财务","会计学、财政学、金融学专业","硕士研究生及以上",1,"无","无","按本市事业单位人员的待遇标准执行，并享受人才引进的相关补助政策。"]
[85,"仁怀市金融管理办公室","全额事业","陈泓靖","085122308496","zyrhrcb@126.com","专业技术","应用经济学类","硕士研究生及以上",1,"无","融资、资本市场发展、地方金融风险防范等","按本市事业单位人员的待遇标准执行，并享受人才引进的相关补助政策。"]
[86,"仁怀市住房和城乡建设局","全额事业","余江","085122222791","zyrhrcb@126.com","专业技术","土木工程类、建筑学硕士专业","硕士研究生及以上",1,"无","无","按本市事业单位人员的待遇标准执行，并享受人才引进的相关补助政策。"]
[87,"仁怀市住房和城乡建设局","全额事业","余江","085122222791","zyrhrcb@126.com","专业技术","城市规划与设计专业","硕士研究生及以上",2,"无","无","按本市事业单位人员的待遇标准执行，并享受人才引进的相关补助政策。"]
[88,"仁怀市环境保护局","全额事业","郑自芹","085122224966","zyrhrcb@126.com","专业技术\n人员","环境与资源保护法学、环境科学与工程","硕士研究生及以上",1,"无","1.从事环境监察、法律法规及项目环评审批相关工作；2.从事环境污染治理、环境监测相关工作","按本市事业单位人员的待遇标准执行，并享受人才引进的相关补助政策。"]
[89,"仁怀市广播电视台","全额事业","张小东","18208453888","zyrhrcb@126.com","广播电视工程技术","信息与通信工程类（通信与信息系统、信号与信息处理）计算机科学与技术类（计算机应用技术）","硕士研究生及以上",1,"无","无","按本市事业单位人员的待遇标准执行，并享受人才引进的相关补助政策。"]
[90,"仁怀茅台古镇文化产业园区管理委员会","全额事业","赵伟","18885206626","zyrhrcb@126.com","综合管理处工作人员","中国语言文学类、旅游管理专业","硕士研究生及以上",1,"无","1.负责园区旅游的综合管理、推介宣传、产品开发与景区活动策划；2.工作积极主动，善于沟通协调，有强烈的责任心；3.有较强的文案撰写能力。","按本市事业单位人员的待遇标准执行，并享受人才引进的相关补助政策。"]
[91,"仁怀茅台古镇文化产业园区管理委员会","全额事业","赵伟","18885206626","zyrhrcb@126.com","招商引资处工作人员","工商管理、技术经济及管理、企业管理专业","硕士研究生及以上",1,"无","1.为园区管辖企业提供平台建设、信息管理、产品营销等相关技术服务；2.参与园区招商引资工作；3.工作积极主动，善于沟通协调，有强烈的责任心；4.有较强的文案撰写能力。","按本市事业单位人员的待遇标准执行，并享受人才引进的相关补助政策。"]
[92,"仁怀市茅台古镇文化产业园区管理委员会","全额事业","赵伟","18885206626","zyrhrcb@126.com","财政金融处工作人员","金融学","硕士研究生及以上",1,"无","1.负责园区的投融资、财务管理等相关工作；2协助园内企业开展信用等级评定和资本运作；3.工作积极主动，善于沟通协调，有强烈的责任心；4.有较强的文案撰写能力。","按本市事业单位人员的待遇标准执行，并享受人才引进的相关补助政策。"]
[93,"仁怀茅台古镇文化产业园区管理委员会","全额事业","赵伟","18885206626","zyrhrcb@126.com","建设管理处工作人员","建筑学类、城市规划与设计专业","硕士研究生及以上",1,"无","1.参与以园区为业主单位的建设项目规划设计、跟踪管理等；2.参与对外委托建设项目规划设计及质量把关；3.协助开展其它工作；4.工作积极主动，善于沟通协调，有强烈的责任心。","按本市事业单位人员的待遇标准执行，并享受人才引进的相关补助政策。"]
[94,"茅台学院","全额事业","屈建达","18212066094","zyrhrcb@126.com","教师","管理类","博士研究生",1,"1.从事与电子商务、网站设计、网络营销等相关课程教学5年以上；2.具有岗位相关省级以上研究成果。","基本要求：1.拥护中国共产党的领导，热爱祖国，遵守宪法、法律和法规，具有良好的职业道德和素质。2.应聘人员须为普通高等教育全日制博士，其第一学历须为普通高等教育全日制本科毕业并取得学士学位。3.应聘的博士其本科、硕士、博士三个阶段至少有两个阶段所学专业一致或相近。4.思想政治素质好、团结协作精神强，具备良好的身体与心理素质，能够胜任岗位工作。5.博士毕业生须于2017年12月31日前获得毕业证和学位证。6.年龄要求：应届毕业博士研究生30周岁以下，副教授35周岁以下，教授61（含61）周岁以下。7.曾因违反党纪国法等受到过党纪、政纪处分或者刑事处罚的不能参加此次公开招聘。","1.博士研究生、副教授年薪不低于18万元；教授年薪面商。2.在茅台学院工作期间，免费提供一间公寓住房。3.安家补贴标准：博士研究生2万元/人，副教授2万元/人，教授3万元/人。4.科研启动经费：按照科研项目或平台支付。博士研究生5-10万，副教授10-15万；教授20-30万元。"]
[95,"茅台学院","全额事业","屈建达","18212066094","zyrhrcb@126.com","教师","管理类","博士研究生",1,"1.从事与物流管理、供应链等相关课程教学5年以；2.具有岗位相关省级以上研究成果。","基本要求：1.拥护中国共产党的领导，热爱祖国，遵守宪法、法律和法规，具有良好的职业道德和素质。2.应聘人员须为普通高等教育全日制博士，其第一学历须为普通高等教育全日制本科毕业并取得学士学位。3.应聘的博士其本科、硕士、博士三个阶段至少有两个阶段所学专业一致或相近。4.思想政治素质好、团结协作精神强，具备良好的身体与心理素质，能够胜任岗位工作。5.博士毕业生须于2017年12月31日前获得毕业证和学位证。6.年龄要求：应届毕业博士研究生30周岁以下，副教授35周岁以下，教授61（含61）周岁以下。7.曾因违反党纪国法等受到过党纪、政纪处分或者刑事处罚的不能参加此次公开招聘。","1.博士研究生、副教授年薪不低于18万元；教授年薪面商。2.在茅台学院工作期间，免费提供一间公寓住房。3.安家补贴标准：博士研究生2万元/人，副教授2万元/人，教授3万元/人。4.科研启动经费：按照科研项目或平台支付。博士研究生5-10万，副教授10-15万；教授20-30万元。"]
[96,"茅台学院","全额事业","屈建达","18212066094","zyrhrcb@126.com","教师","管理类","博士研究生",1,"1.从事与市场营销相关课程教学5年以上；2.具有岗位相关省级以上研究成果。","基本要求：1.拥护中国共产党的领导，热爱祖国，遵守宪法、法律和法规，具有良好的职业道德和素质。2.应聘人员须为普通高等教育全日制博士，其第一学历须为普通高等教育全日制本科毕业并取得学士学位。3.应聘的博士其本科、硕士、博士三个阶段至少有两个阶段所学专业一致或相近。4.思想政治素质好、团结协作精神强，具备良好的身体与心理素质，能够胜任岗位工作。5.博士毕业生须于2017年12月31日前获得毕业证和学位证。6.年龄要求：应届毕业博士研究生30周岁以下，副教授35周岁以下，教授61（含61）周岁以下。7.曾因违反党纪国法等受到过党纪、政纪处分或者刑事处罚的不能参加此次公开招聘。","1.博士研究生、副教授年薪不低于18万元；教授年薪面商。2.在茅台学院工作期间，免费提供一间公寓住房。3.安家补贴标准：博士研究生2万元/人，副教授2万元/人，教授3万元/人。4.科研启动经费：按照科研项目或平台支付。博士研究生5-10万，副教授10-15万；教授20-30万元"]
[97,"茅台学院","全额事业","屈建达","18212066094","zyrhrcb@126.com","教师","酒店管理","博士研究生",1,"1.胜任专业核心课程讲授工作；2.有岗位相关科研科研成果，在2-3年内能申请到国家级项目；3.对本学科建设和发展具有引领性与创新性构想，并能在2-3年内带领团队在本学科领域形成特色研究方向和重要成果。","基本要求：1.拥护中国共产党的领导，热爱祖国，遵守宪法、法律和法规，具有良好的职业道德和素质。2.应聘人员须为普通高等教育全日制博士，其第一学历须为普通高等教育全日制本科毕业并取得学士学位。3.应聘的博士其本科、硕士、博士三个阶段至少有两个阶段所学专业一致或相近。4.思想政治素质好、团结协作精神强，具备良好的身体与心理素质，能够胜任岗位工作。5.博士毕业生须于2017年12月31日前获得毕业证和学位证。6.年龄要求：应届毕业博士研究生30周岁以下，副教授35周岁以下，教授61（含61）周岁以下。7.曾因违反党纪国法等受到过党纪、政纪处分或者刑事处罚的不能参加此次公开招聘。","1.博士研究生、副教授年薪不低于18万元；教授年薪面商。2.在茅台学院工作期间，免费提供一间公寓住房。3.安家补贴标准：博士研究生2万元/人，副教授2万元/人，教授3万元/人。4.科研启动经费：按照科研项目或平台支付。博士研究生5-10万，副教授10-15万；教授20-30万元。"]
[98,"茅台学院","全额事业","屈建达","18212066094","zyrhrcb@126.com","教师","旅游管理","博士研究生",1,"1.胜任专业核心课程讲授工作；2.有岗位相关科研科研成果，在2-3年内能申请到国家级项目；3.对本学科建设和发展具有引领性与创新性构想，并能在2-3年内带领团队在本学科领域形成特色研究方向和重要成果。","基本要求：1.拥护中国共产党的领导，热爱祖国，遵守宪法、法律和法规，具有良好的职业道德和素质。2.应聘人员须为普通高等教育全日制博士，其第一学历须为普通高等教育全日制本科毕业并取得学士学位。3.应聘的博士其本科、硕士、博士三个阶段至少有两个阶段所学专业一致或相近。4.思想政治素质好、团结协作精神强，具备良好的身体与心理素质，能够胜任岗位工作。5.博士毕业生须于2017年12月31日前获得毕业证和学位证。6.年龄要求：应届毕业博士研究生30周岁以下，副教授35周岁以下，教授61（含61）周岁以下。7.曾因违反党纪国法等受到过党纪、政纪处分或者刑事处罚的不能参加此次公开招聘。","1.博士研究生、副教授年薪不低于18万元；教授年薪面商。2.在茅台学院工作期间，免费提供一间公寓住房。3.安家补贴标准：博士研究生2万元/人，副教授2万元/人，教授3万元/人。4.科研启动经费：按照科研项目或平台支付。博士研究生5-10万，副教授10-15万；教授20-30万元。"]
[99,"茅台学院","全额事业","屈建达","18212066094","zyrhrcb@126.com","教师","食品质量与安全","博士研究生",1,"1.胜任专业核心课程讲授工作；2.具有岗位相关科研成果；3.对本学科建设和发展具有引领性与创新性构想，并能在3-5年内带领青年教师在本学科领域形成特色研究方向和重要成果。","基本要求：1.拥护中国共产党的领导，热爱祖国，遵守宪法、法律和法规，具有良好的职业道德和素质。2.应聘人员须为普通高等教育全日制博士，其第一学历须为普通高等教育全日制本科毕业并取得学士学位。3.应聘的博士其本科、硕士、博士三个阶段至少有两个阶段所学专业一致或相近。4.思想政治素质好、团结协作精神强，具备良好的身体与心理素质，能够胜任岗位工作。5.博士毕业生须于2017年12月31日前获得毕业证和学位证。6.年龄要求：应届毕业博士研究生30周岁以下，副教授35周岁以下，教授61（含61）周岁以下。7.曾因违反党纪国法等受到过党纪、政纪处分或者刑事处罚的不能参加此次公开招聘。","1.博士研究生、副教授年薪不低于18万元；教授年薪面商。2.在茅台学院工作期间，免费提供一间公寓住房。3.安家补贴标准：博士研究生2万元/人，副教授2万元/人，教授3万元/人。4.科研启动经费：按照科研项目或平台支付。博士研究生5-10万，副教授10-15万；教授20-30万元。"]
[100,"茅台学院","全额事业","屈建达","18212066094","zyrhrcb@126.com","教师","食品科学与工程","博士研究生",1,"1.胜任专业核心课程讲授工作；2.具有岗位相关科研成果；3.对本学科建设和发展具有引领性与创新性构想，并能在3-5年内带领青年教师在本学科领域形成特色研究方向和重要成果。","基本要求：1.拥护中国共产党的领导，热爱祖国，遵守宪法、法律和法规，具有良好的职业道德和素质。2.应聘人员须为普通高等教育全日制博士，其第一学历须为普通高等教育全日制本科毕业并取得学士学位。3.应聘的博士其本科、硕士、博士三个阶段至少有两个阶段所学专业一致或相近。4.思想政治素质好、团结协作精神强，具备良好的身体与心理素质，能够胜任岗位工作。5.博士毕业生须于2017年12月31日前获得毕业证和学位证。6.年龄要求：应届毕业博士研究生30周岁以下，副教授35周岁以下，教授61（含61）周岁以下。7.曾因违反党纪国法等受到过党纪、政纪处分或者刑事处罚的不能参加此次公开招聘。","1.博士研究生、副教授年薪不低于18万元；教授年薪面商。2.在茅台学院工作期间，免费提供一间公寓住房。3.安家补贴标准：博士研究生2万元/人，副教授2万元/人，教授3万元/人。4.科研启动经费：按照科研项目或平台支付。博士研究生5-10万，副教授10-15万；教授20-30万元。"]
[101,"茅台学院","全额事业","屈建达","18212066094","zyrhrcb@126.com","教师","物理专业","博士研究生",1,"1.本、硕、博士专业一致为物理方向。2.教授60周岁以下，主持国家项目2项以上。","基本要求：1.拥护中国共产党的领导，热爱祖国，遵守宪法、法律和法规，具有良好的职业道德和素质。2.应聘人员须为普通高等教育全日制博士，其第一学历须为普通高等教育全日制本科毕业并取得学士学位。3.应聘的博士其本科、硕士、博士三个阶段至少有两个阶段所学专业一致或相近。4.思想政治素质好、团结协作精神强，具备良好的身体与心理素质，能够胜任岗位工作。5.博士毕业生须于2017年12月31日前获得毕业证和学位证。6.年龄要求：应届毕业博士研究生30周岁以下，副教授35周岁以下，教授61（含61）周岁以下。7.曾因违反党纪国法等受到过党纪、政纪处分或者刑事处罚的不能参加此次公开招聘。","1.博士研究生、副教授年薪不低于18万元；教授年薪面商。2.在茅台学院工作期间，免费提供一间公寓住房。3.安家补贴标准：博士研究生2万元/人，副教授2万元/人，教授3万元/人。4.科研启动经费：按照科研项目或平台支付。博士研究生5-10万，副教授10-15万；教授20-30万元。"]
[102,"茅台学院","全额事业","屈建达","18212066094","zyrhrcb@126.com","教师","机械自动化专业","博士研究生",1,"1.本、硕、博士专业一致为机械方向。2.教授50岁以下，主持国家基金项目2项以上。","基本要求：1.拥护中国共产党的领导，热爱祖国，遵守宪法、法律和法规，具有良好的职业道德和素质。2.应聘人员须为普通高等教育全日制博士，其第一学历须为普通高等教育全日制本科毕业并取得学士学位。3.应聘的博士其本科、硕士、博士三个阶段至少有两个阶段所学专业一致或相近。4.思想政治素质好、团结协作精神强，具备良好的身体与心理素质，能够胜任岗位工作。5.博士毕业生须于2017年12月31日前获得毕业证和学位证。6.年龄要求：应届毕业博士研究生30周岁以下，副教授35周岁以下，教授61（含61）周岁以下。7.曾因违反党纪国法等受到过党纪、政纪处分或者刑事处罚的不能参加此次公开招聘。","1.博士研究生、副教授年薪不低于18万元；教授年薪面商。2.在茅台学院工作期间，免费提供一间公寓住房。3.安家补贴标准：博士研究生2万元/人，副教授2万元/人，教授3万元/人。4.科研启动经费：按照科研项目或平台支付。博士研究生5-10万，副教授10-15万；教授20-30万元。"]
[103,"茅台学院","全额事业","屈建达","18212066094","zyrhrcb@126.com","教师","高等数学","博士研究生",1,"1.胜任专业核心课程讲授工作；2.具有岗位相关科研成果；3.对本学科建设和发展具有引领性与创新性构想，并能在3-5年内带领青年教师在本学科领域形成特色研究方向和重要成果。","基本要求：1.拥护中国共产党的领导，热爱祖国，遵守宪法、法律和法规，具有良好的职业道德和素质。2.应聘人员须为普通高等教育全日制博士，其第一学历须为普通高等教育全日制本科毕业并取得学士学位。3.应聘的博士其本科、硕士、博士三个阶段至少有两个阶段所学专业一致或相近。4.思想政治素质好、团结协作精神强，具备良好的身体与心理素质，能够胜任岗位工作。5.博士毕业生须于2017年12月31日前获得毕业证和学位证。6.年龄要求：应届毕业博士研究生30周岁以下，副教授35周岁以下，教授61（含61）周岁以下。7.曾因违反党纪国法等受到过党纪、政纪处分或者刑事处罚的不能参加此次公开招聘。","1.博士研究生、副教授年薪不低于18万元；教授年薪面商。2.在茅台学院工作期间，免费提供一间公寓住房。3.安家补贴标准：博士研究生2万元/人，副教授2万元/人，教授3万元/人。4.科研启动经费：按照科研项目或平台支付。博士研究生5-10万，副教授10-15万；教授20-30万元。"]
[104,"茅台学院","全额事业","屈建达","18212066094","zyrhrcb@126.com","教师","马克思主义大类","博士研究生",1,"1.胜任专业核心课程讲授工作；2.具有岗位相关科研成果；3.对本学科建设和发展具有引领性与创新性构想，并能在3-5年内带领青年教师在本学科领域形成特色研究方向和重要成果。","基本要求：1.拥护中国共产党的领导，热爱祖国，遵守宪法、法律和法规，具有良好的职业道德和素质。2.应聘人员须为普通高等教育全日制博士，其第一学历须为普通高等教育全日制本科毕业并取得学士学位。3.应聘的博士其本科、硕士、博士三个阶段至少有两个阶段所学专业一致或相近。4.思想政治素质好、团结协作精神强，具备良好的身体与心理素质，能够胜任岗位工作。5.博士毕业生须于2017年12月31日前获得毕业证和学位证。6.年龄要求：应届毕业博士研究生30周岁以下，副教授35周岁以下，教授61（含61）周岁以下。7.曾因违反党纪国法等受到过党纪、政纪处分或者刑事处罚的不能参加此次公开招聘。","1.博士研究生、副教授年薪不低于18万元；教授年薪面商。2.在茅台学院工作期间，免费提供一间公寓住房。3.安家补贴标准：博士研究生2万元/人，副教授2万元/人，教授3万元/人。4.科研启动经费：按照科研项目或平台支付。博士研究生5-10万，副教授10-15万；教授20-30万元。"]
[105,"茅台学院","全额事业","屈建达","18212066094","zyrhrcb@126.com","教师","体育","博士研究生",1,"1.胜任专业核心课程讲授工作；2.具有岗位相关科研成果。","基本要求：1.拥护中国共产党的领导，热爱祖国，遵守宪法、法律和法规，具有良好的职业道德和素质。2.应聘人员须为普通高等教育全日制博士，其第一学历须为普通高等教育全日制本科毕业并取得学士学位。3.应聘的博士其本科、硕士、博士三个阶段至少有两个阶段所学专业一致或相近。4.思想政治素质好、团结协作精神强，具备良好的身体与心理素质，能够胜任岗位工作。5.博士毕业生须于2017年12月31日前获得毕业证和学位证。6.年龄要求：应届毕业博士研究生30周岁以下，副教授35周岁以下，教授61（含61）周岁以下。7.曾因违反党纪国法等受到过党纪、政纪处分或者刑事处罚的不能参加此次公开招聘。","1.博士研究生、副教授年薪不低于18万元；教授年薪面商。2.在茅台学院工作期间，免费提供一间公寓住房。3.安家补贴标准：博士研究生2万元/人，副教授2万元/人，教授3万元/人。4.科研启动经费：按照科研项目或平台支付。博士研究生5-10万，副教授10-15万；教授20-30万元。"]
[106,"茅台学院","全额事业","屈建达","18212066094","zyrhrcb@126.com","教师","葡萄酒工程","博士研究生",2,"1.需带领团队承担攻关省级及以上科研项目；2.承担葡萄酒专业课程建设。","基本要求：1.拥护中国共产党的领导，热爱祖国，遵守宪法、法律和法规，具有良好的职业道德和素质。2.应聘人员须为普通高等教育全日制博士，其第一学历须为普通高等教育全日制本科毕业并取得学士学位。3.应聘的博士其本科、硕士、博士三个阶段至少有两个阶段所学专业一致或相近。4.思想政治素质好、团结协作精神强，具备良好的身体与心理素质，能够胜任岗位工作。5.博士毕业生须于2017年12月31日前获得毕业证和学位证。6.年龄要求：应届毕业博士研究生30周岁以下，副教授35周岁以下，教授61（含61）周岁以下。7.曾因违反党纪国法等受到过党纪、政纪处分或者刑事处罚的不能参加此次公开招聘。","1.博士研究生、副教授年薪不低于18万元；教授年薪面商。2.在茅台学院工作期间，免费提供一间公寓住房。3.安家补贴标准：博士研究生2万元/人，副教授2万元/人，教授3万元/人。4.科研启动经费：按照科研项目或平台支付。博士研究生5-10万，副教授10-15万；教授20-30万元。"]
[107,"茅台学院","全额事业","屈建达","18212066094","zyrhrcb@126.com","教师","酿酒工程","博士研究生",2,"1.需带领团队承担攻关省级及以上科研项目；2.承担酿酒工程专业课程建设。","基本要求：1.拥护中国共产党的领导，热爱祖国，遵守宪法、法律和法规，具有良好的职业道德和素质。2.应聘人员须为普通高等教育全日制博士，其第一学历须为普通高等教育全日制本科毕业并取得学士学位。3.应聘的博士其本科、硕士、博士三个阶段至少有两个阶段所学专业一致或相近。4.思想政治素质好、团结协作精神强，具备良好的身体与心理素质，能够胜任岗位工作。5.博士毕业生须于2017年12月31日前获得毕业证和学位证。6.年龄要求：应届毕业博士研究生30周岁以下，副教授35周岁以下，教授61（含61）周岁以下。7.曾因违反党纪国法等受到过党纪、政纪处分或者刑事处罚的不能参加此次公开招聘。","1.博士研究生、副教授年薪不低于18万元；教授年薪面商。2.在茅台学院工作期间，免费提供一间公寓住房。3.安家补贴标准：博士研究生2万元/人，副教授2万元/人，教授3万元/人。4.科研启动经费：按照科研项目或平台支付。博士研究生5-10万，副教授10-15万；教授20-30万元。"]
["赤水市"]
[108,"赤水市公证处","全额事业","杨兴才","18585328882","383203207@qq.com","公证助理员","法学","硕士研究生及以上",1,"无","1.会民事法律知识2.会基本的计算机操作3.过司法考试优先考虑","执行赤水市有关人才政策"]
[109,"赤水市中医院","差额事业","胡春梅","13765244886","397940315@qq.com","骨科主任","临床医学、中医学","硕士研究生及以上",1,"具备副高职称学历可放宽到本科","二级甲等医院工作经历2年以上","一次性安家费25.00万元"]
[110,"赤水市中医院","差额事业","胡春梅","13765244886","397940315@qq.com","康复科主任","针灸推拿学、中医学","硕士研究生及以上",1,"具备副高职称学历可放宽到本科","二级甲等医院工作经历2年以上","一次性安家费25.00万元"]
[111,"赤水市中医院","差额事业","胡春梅","13765244886","397940315@qq.com","心内科主任","临床医学","硕士研究生及以上",1,"具备副高职称学历可放宽到本科","二级甲等医院工作经历2年以上","一次性安家费25.00万元"]
[112,"赤水市中医院","差额事业","胡春梅","13765244886","397940315@qq.com","疼痛科主任","针灸推拿学、中医学","硕士研究生及以上",1,"具备副高职称学历可放宽到本科","二级甲等医院工作经历2年以上","一次性安家费25.00万元"]
[113,"赤水市中医院","差额事业","胡春梅","13765244886","397940315@qq.com","肿瘤科主任","临床医学、中西医结合临床医学","硕士研究生及以上",1,"具备副高职称学历可放宽到本科","二级甲等医院工作经历2年以上","一次性安家费25.00万元"]
[114,"赤水市中医院","差额事业","胡春梅","13765244886","397940315@qq.com","儿科主任","儿科学","硕士研究生及以上",1,"具备副高职称学历可放宽到本科","二级甲等医院工作经历2年以上","一次性安家费25.00万元"]
[115,"赤水市中医院","差额事业","胡春梅","13765244886","397940315@qq.com","妇产科","临床医学","全日制专科及以上",1,"副主任医师及以上，50岁以下","副主任医师及以上，50岁以下","在编在职人员待遇"]
[116,"赤水市官渡中心卫生院","全额事业","韩华鑫","17785252666","1037099188@qq.com","医生","口腔医学","硕士研究生及以上",1,"无","口腔科学科带头人，执业医师及以上","在职在编，年薪30-50万，赠送120-140平方米住房一套，一次性安置补助15万"]
[117,"赤水市官渡中心卫生院","全额事业","韩华鑫","17785252666","1037099188@qq.com","医生","外科学","硕士研究生及以上",1,"无","外科学科带头人，主治医师","在职在编，年薪40-50万，赠送120-140平方米住房一套，一次性安置补助15万"]
[118,"赤水市人民医院","差额事业","田琼","13984968081","1049620286@qq.com","儿科主任","儿科学","硕士研究生及以上",1,"具有二甲及以上医院相应工作经历","具备副高职称学历可放宽到本科","在职在编；年薪25至50万；赠送100平米住房一套；一次性安置补助25-60万元（面议）"]
[119,"赤水市人民医院","差额事业","田琼","13984968081","1049620286@qq.com","肿瘤科主任","肿瘤学","硕士研究生及以上",1,"具有二甲及以上医院相应工作经历","具备副高职称学历可放宽到本科","在职在编；年薪25至50万；赠送100平米住房一套；一次性安置补助25-60万元（面议）"]
[120,"赤水市人民医院","差额事业","田琼","13984968081","1049620286@qq.com","肾内、内分泌科主任（或副主任）","内科学（内分泌优先）","硕士研究生及以上",1,"具有二甲及以上医院相应工作经历","具备副高职称学历可放宽到本科","在职在编；年薪25至50万；赠送100平米住房一套；一次性安置补助25-60万元（面议）"]
[121,"赤水市人民医院","差额事业","田琼","13984968081","1049620286@qq.com","普外科主任（或副主任）","外科学（普通外科优先）","硕士研究生及以上",1,"具有二甲及以上医院相应工作经历","具备副高职称学历可放宽到本科","在职在编；年薪25至50万；赠送100平米住房一套；一次性安置补助25-60万元（面议）"]
[122,"赤水市人民医院","差额事业","田琼","13984968081","1049620286@qq.com","神经外科主任","外科学（神经外科优先）","硕士研究生及以上",1,"具有二甲及以上医院相应工作经历","具备副高职称学历可放宽到本科","在职在编；年薪25至50万；赠送100平米住房一套；一次性安置补助25-60万元（面议）"]
[123,"赤水市人民医院","差额事业","田琼","13984968081","1049620286@qq.com","泌尿外科主任","外科学（泌尿外科优先）","硕士研究生及以上",1,"具有二甲及以上医院相应工作经历","具备副高职称学历可放宽到本科","在职在编；年薪25至50万；赠送100平米住房一套；一次性安置补助25-60万元（面议）"]
[124,"赤水市人民医院","差额事业","田琼","13984968081","1049620286@qq.com","妇产科主任","妇产科学","硕士研究生及以上",1,"具有二甲及以上医院相应工作经历","具备副高职称学历可放宽到本科","在职在编；年薪25至50万；赠送100平米住房一套；一次性安置补助25-60万元（面议）"]
[125,"赤水市人民医院","差额事业","田琼","13984968081","1049620286@qq.com","眼科主任（或副主任）","眼科学","硕士研究生及以上",1,"具有二甲及以上医院相应工作经历","具备副高职称学历可放宽到本科","在职在编；年薪25至50万；赠送100平米住房一套；一次性安置补助25-60万元（面议）"]
[126,"赤水市人民医院","差额事业","田琼","13984968081","1049620286@qq.com","康复医学科主任","康复医学与理疗学、针灸推拿学","硕士研究生及以上",1,"具有二甲及以上医院相应工作经历","具备副高职称学历可放宽到本科","在职在编；年薪25至50万；赠送100平米住房一套；一次性安置补助25-60万元（面议）"]
[127,"赤水市人民医院","差额事业","田琼","13984968081","1049620286@qq.com","麻醉科主任（或副主任）","麻醉学","硕士研究生及以上",1,"具有二甲及以上医院相应工作经历","具备副高职称学历可放宽到本科","在职在编；年薪25至50万；赠送100平米住房一套；一次性安置补助25-60万元（面议）"]
[128,"赤水市人民医院","差额事业","田琼","13984968081","1049620286@qq.com","皮肤科学科带头人","皮肤病与性病学","硕士研究生及以上",1,"具有二甲及以上医院相应工作经历","具备副高职称学历可放宽到本科","在职在编；年薪25至50万；赠送100平米住房一套；一次性安置补助25-60万元（面议）"]
[129,"赤水市人民医院","差额事业","田琼","13984968081","1049620286@qq.com","重症医学科主任（或副主任）","内科学（重症医学优先）","硕士研究生及以上",1,"具有二甲及以上医院相应工作经历","具备副高职称学历可放宽到本科","在职在编；年薪25至50万；赠送100平米住房一套；一次性安置补助25-60万元（面议）"]
[130,"赤水市人民医院","差额事业","田琼","13984968081","1049620286@qq.com","病理科主任","病理学与病理生理学","硕士研究生及以上",1,"具有二甲及以上医院相应工作经历","具备副高职称学历可放宽到本科","在职在编；年薪25至50万；赠送100平米住房一套；一次性安置补助25-60万元（面议）"]
[131,"赤水市人民医院","差额事业","田琼","13984968081","1049620286@qq.com","超声科主任","影像医学与核医学（超声医学优先）","硕士研究生及以上",1,"具有二甲及以上医院相应工作经历","具备副高职称学历可放宽到本科","在职在编；年薪25至50万；赠送100平米住房一套；一次性安置补助25-60万元（面议）"]
[132,"赤水市土地勘测规划站","全额事业","胥学","18089679654","469490563@qq.com","专业技术","地质学类","硕士研究生及以上",1,"无","主要从事国土资源调查、国土资源利用项目规划设计、土地变更调查、地质灾害普查、工程测量、地籍测绘等","执行赤水市有关人才政策"]
[133,"赤水市城乡规划管理站","全额事业","赵砚","13708521999","82043661@qq.com","专业技术","城乡规划学、建筑学、风景园林学","硕士研究生及以上",1,"无","城乡规划管理、三证一书办理、规划方案审查","执行赤水市有关人才政策"]
[134,"赤水市中等职业学校","全额事业","龚建伟","18685266697","1017728780@qq.com","信息技术教师","信息与通信工程、通信与信息系统","硕士研究生及以上",1,"无","企业网络搭建、网络服务器设置与维护、弱电项目统筹施工等","执行赤水市有关人才政策"]
[135,"赤水市疾病预防控制中心","全额事业","陈渝黔","085122861287","csjkzxbgs@163.com","专业技术","公共卫生与预防医学","硕士研究生及以上",1,"流行病及公共卫生突发事件处置，公共卫生管理","流行病及公共卫生突发事件处置，公共卫生管理","执行赤水市有关人才政策"]
["桐梓县"]
[136,"桐梓县林业局","全额事业","徐玲玲","15285152142","1045372571@qq.com","专业技术","农产品贮藏与加工、食品科学","硕士研究生及以上",2,"无","竹产品保鲜开发利用缺少创新，对相关延伸保健竹产品缺少高层次技术研发人才进行相关经验指导。","按照桐梓县事业单位人员待遇执行"]
[137,"桐梓县农牧局下属事业单位","全额事业","何晓皎","18285236999","835580399@qq.com","专业技术","果树、茶叶、蔬菜栽培及管理","硕士研究生及以上",1,"无","熟悉果树、茶叶、蔬菜栽培及管理","按照桐梓县事业单位人员待遇执行"]
[138,"桐梓县农牧局下属事业单位","全额事业","何晓皎","18285236999","835580399@qq.com","专业技术","农业企业经营管理","硕士研究生及以上",1,"无","熟悉农业企业经营管理、掌握市场需求","按照桐梓县事业单位人员待遇执行"]
[139,"桐梓县农牧局下属事业单位","全额事业","何晓皎","18285236999","835580399@qq.com","专业技术","农产品质量安全","硕士研究生及以上",1,"无","熟悉农产品质量安全","按照桐梓县事业单位人员待遇执行"]
[140,"桐梓县中医院","差额事业","成克富","18089668928","373124386@qq.com","专业技术","普外科","硕士研究生及以上",1,"无","打造本院重点学科重点专科带头人","1.2万元/月"]
[141,"桐梓县中医院","差额事业","成克富","18089668928","373124386@qq.com","专业技术","骨外科","硕士研究生及以上",1,"无","打造本院重点学科重点专科带头人","1.2万元/月"]
[142,"桐梓县中医院","差额事业","成克富","18089668928","373124386@qq.com","专业技术","妇科","硕士研究生及以上",1,"无","打造本院重点学科重点专科带头人","1.2万元/月"]
[143,"桐梓县中医院","差额事业","成克富","18089668928","373124386@qq.com","专业技术","产科","硕士研究生及以上",1,"无","打造本院重点学科重点专科带头人","1.2万元/月"]
[144,"桐梓县人民医院","差额事业","何光亮","085126622441","1637247690@qq.com","医师","心血管科","硕士研究生及以上",1,"无","在二级及以上医院，从事本专业2年及以上工作经历优先","工资（保底12000.00元/月）、安家费30000.00元。"]
[145,"桐梓县人民医院","差额事业","何光亮","085126622441","1637247690@qq.com","医师","内分泌科","硕士研究生及以上",1,"无","在二级及以上医院，从事本专业2年及以上工作经历优先","工资（保底12000.00元/月）、安家费30000.00元。"]
[146,"桐梓县人民医院","差额事业","何光亮","085126622441","1637247690@qq.com","医师","呼吸科","硕士研究生及以上",1,"无","在二级及以上医院，从事本专业2年及以上工作经历优先","工资（保底12000.00元/月）、安家费30000.00元。"]
[147,"桐梓县人民医院","差额事业","何光亮","085126622441","1637247690@qq.com","医师","重症医学科","硕士研究生及以上",1,"无","在二级及以上医院，从事本专业2年及以上工作经历优先","工资（保底12000.00元/月）、安家费30000.00元。"]
[148,"桐梓县人民医院","差额事业","何光亮","085126622441","1637247690@qq.com","医师","骨科","硕士研究生及以上",1,"无","在二级及以上医院，从事本专业2年及以上工作经历优先","工资（保底12000.00元/月）、安家费30000.00元。"]
[149,"桐梓县人民医院","差额事业","何光亮","085126622441","1637247690@qq.com","医师","脑外科","硕士研究生及以上",1,"无","在二级及以上医院，从事本专业2年及以上工作经历优先","工资（保底12000.00元/月）、安家费30000.00元。"]
[150,"桐梓县人民医院","差额事业","何光亮","085126622441","1637247690@qq.com","医师","眼科","硕士研究生及以上",1,"无","在二级及以上医院，从事本专业2年及以上工作经历优先","工资（保底12000.00元/月）、安家费30000.00元。"]
[151,"桐梓县人民医院","差额事业","何光亮","085126622441","1637247690@qq.com","医师","普外科","硕士研究生及以上",1,"无","在二级及以上医院，从事本专业2年及以上工作经历优先","工资（保底12000.00元/月）、安家费30000.00元。"]
[152,"桐梓县人民医院","差额事业","何光亮","085126622441","1637247690@qq.com","医师","耳鼻咽喉科","硕士研究生及以上",1,"无","在二级及以上医院，从事本专业2年及以上工作经历优先","工资（保底12000.00元/月）、安家费30000.00元。"]
[153,"桐梓县人民医院","差额事业","何光亮","085126622441","1637247690@qq.com","医师","颌面外科","硕士研究生及以上",1,"无","在二级及以上医院，从事本专业2年及以上工作经历优先","工资（保底12000.00元/月）、安家费30000.00元。"]
["习水县"]
[154,"习水草地生态畜牧业发展中心","全额事业","邓洪睿","085122520102","395401745@qq.com","专业技术人员","畜牧专业、农产品质量检测方面","硕士研究生及以上",1,"无","动物医学检验和疫病防控，农产品质量检测化验。","按国家相关政策执行"]
[155,"习水县蔬菜水果工作站","全额事业","邓洪睿","085122520102","395401745@qq.com","专业技术人员","农学专业、园艺或农产品质量检测","硕士研究生及以上",1,"无","无","按国家相关政策执行"]
[156,"习水县域名和信息管理中心","全额事业","赵彧涛","085122527825","574625706@qq.com","专业技术岗位","法学类或计算机应用技术","硕士研究生及以上",1,"无","负责规范性文件拟草、初审及信息处理运用","按国家相关政策执行"]
[157,"习水县供排水服务中心","全额事业","袁兴全",13985225848,"360259203@qq.com","工作人员","供排水专业","硕士研究生及以上",2,"无","指导城镇污水收集、处理、排放工作；负责全县污水处理、再生水利等基础设施建设、改造、维护、管理。","按国家相关政策执行"]
[158,"习水县水土保持监测站","全额事业","袁兴全",13985225848,"360259203@qq.com","工作人员","水资源管理相关专业","硕士研究生及以上",2,"无","研究拟定水务工作的政策；指导水务行政许可工作并监督实施。","按国家相关政策执行"]
[159,"习水县劳动人事争议仲裁院","全额事业","罗安泰","085122731495","360259203@qq.com","仲裁庭工作人员","法律专业","硕士研究生及以上",1,"无","仲裁案件办理","按国家相关政策执行"]
[160,"习水县劳动人事争议仲裁院","全额事业","罗安泰","085122731495","360259203@qq.com","审监庭工作人员","中文或文秘专业","硕士研究生及以上",1,"无","案件审理监督","按国家相关政策执行"]
[161,"习水县市场监督管理检测中心","全额事业","曹继红","085122732520","360259203@qq.com","工作人员","食品检测","硕士研究生及以上",1,"无","熟悉食品安全相关法律法规、食品标准","按国家有关规定执行"]
[162,"习水县市场监督管理信息中心","全额事业","曹继红","085122732520","360259203@qq.com","工作人员","法律或行政法专业","硕士研究生及以上",1,"无","熟悉各项行政法律法规","按国家有关规定执行"]
[163,"习水县市场监督管理信息中心","全额事业","曹继红","085122732520","360259203@qq.com","工作人员","产品质量及相关专业","硕士研究生及以上",1,"无","熟悉产品质量相关法律法规、产品质量管理和品牌建设","按国家有关规定执行"]
[164,"习水县市场监督管理信息中心","全额事业","曹继红","085122732520","360259203@qq.com","工作人员","中药学","硕士研究生及以上",1,"无","熟悉中药材生产质量管理规范","按国家有关规定执行"]
[165,"习水县市场监督管理信息中心","全额事业","曹继红","085122732520","360259203@qq.com","信息管理工作人员","计算机及相关专业","硕士研究生及以上",1,"无","熟悉计算机网络及技术，电子商务","按国家有关规定执行"]
["湄潭县"]
[166,"湄潭县现代高效农业园区管理委员会","全额事业","何正霞","13595212150","mtnyyq@163.com","项目处","金融及相关专业","硕士研究生及以上",1,"无","农业项目融资方案的策划编制及实施","国家事业单位标准"]
[167,"中共湄潭县委党校","全额事业","吴大江","13595226978","mtxwdx.4221283@163.com","教学","法学类、经济类、行政管理类","硕士研究生及以上",2,"无","教学工作","按国家事业单位标准执行"]
[168,"湄潭县广播电视台","全额事业","罗宗义","13985665555","meitan4221058@126.com","编辑记者","新闻类、汉语言文学","硕士研究生及以上",1,"无","从事编辑记者工作","按国家事业单位标准执行"]
[169,"湄潭县人民医院","差额事业","彭雪平","13985245812","mtxrmyy4251183@163.com","专业技术岗","儿科学","硕士研究生及以上",1,"从事新生儿科专业临床工作3年以上","无","1.按国家事业单位标准执行；2.其他待遇面议。"]
[170,"湄潭县人民医院","差额事业","彭雪平","13985245812","mtxrmyy4251183@163.com","专业技术岗","妇产科学","硕士研究生及以上",1,"从事妇科专业临床工作3年以上","无","1.按国家事业单位标准执行；2.其他待遇面议。"]
[171,"湄潭县人民医院","差额事业","彭雪平","13985245812","mtxrmyy4251183@163.com","专业技术岗","内科学","硕士研究生及以上",1,"从事心血管介入专业临床工作3年以上","无","1.按国家事业单位标准执行；2.其他待遇面议。"]
[172,"湄潭县人民医院","差额事业","彭雪平","13985245812","mtxrmyy4251183@163.com","专业技术岗","妇产科学","硕士研究生及以上",1,"从事产科专业临床工作3年以上","无","1.按国家事业单位标准执行；2.其他待遇面议。"]
[173,"湄潭县人民医院","差额事业","彭雪平","13985245812","mtxrmyy4251183@163.com","专业技术岗","内科学","硕士研究生及以上",1,"从事呼吸内科专业临床工作3年以上","无","1.按国家事业单位标准执行；2.其他待遇面议。"]
[174,"湄潭县人民医院","差额事业","彭雪平","13985245812","mtxrmyy4251183@163.com","专业技术岗","临床医学","硕士研究生及以上",10,"无","从事临床工作","1.按国家事业单位标准执行；2.其他待遇面议。"]
[175,"湄潭县人民医院","差额事业","彭雪平","13985245812","mtxrmyy4251183@163.com","专业技术岗","护理学","硕士研究生及以上",5,"无","从事护理工作","1.按国家事业单位标准执行；2.其他待遇面议。"]
["凤冈县"]
[176,"凤冈县投资促进局","全额事业","安永灿","13985207229","fgrck@163.com","招商协作股工作员","经济学、金融、市场营销","硕士研究生及以上",1,"无","熟悉金融招商、市场经济及前景分析、上市企业培植指导；熟悉招引资业务、项目策划包装、项目推介、项目库管理及网络管理。","事业单位待遇"]
[177,"凤冈县住房和城乡建设局","全额事业","柳筑君","18908523053","fgrck@163.com","技术员","城市规划","硕士研究生及以上",1,"无","城市规划专业","事业单位待遇"]
[178,"凤冈县中等职业学校","全额事业","石帮军","13765996118","fgrck@163.com","语文教师","语文","硕士研究生及以上",3,"无","无","事业单位待遇事业单位待遇"]
[179,"凤冈县中等职业学校","全额事业","石帮军","13765996118","fgrck@163.com","英语教师","英语","硕士研究生及以上",1,"无","无","事业单位待遇"]
[180,"凤冈县中等职业学校","全额事业","石帮军","13765996118","fgrck@163.com","舞蹈教师","舞蹈","硕士研究生及以上",1,"无","无","事业单位待遇"]
[181,"凤冈县中等职业学校","全额事业","石帮军","13765996118","fgrck@163.com","普通话教师","普通话","硕士研究生及以上",1,"无","无","事业单位待遇"]
[182,"凤冈县农牧局","全额事业","李刚","13885247858","fgrck@163.com","技术员","畜牧兽医类","硕士研究生及以上",1,"无","我县是肉牛养殖的裂变县急需人才","事业单位待遇"]
[183,"凤冈县农牧局","全额事业","李刚","13885247858","fgrck@163.com","技术员","农学类","硕士研究生及以上",1,"无","我县是生态有机农业大县急需农学类专业人才","事业单位待遇"]
[184,"中共凤冈县委办公室（小康办）","全额事业","王飞","15985279697","fgrck@163.com","工作人员","汉语言文学、经济学、哲学、社会学","硕士研究生及以上",1,"无","有一定的文字功底，具有统筹、协调、组织、沟通能力","事业单位待遇"]
["余庆县"]
[185,"余庆县人民政府电子政务办公室","事业","何霆","085124623388","1542738205@qq.com","大数据管理","计算机科学与技术类","硕士研究生及以上",1,"无","无","执行余党发〔2017〕11号文件待遇"]
[186,"余庆县妇幼保健计划生育服务中心","事业","何霆","085124623388","1542738205@qq.com","妇产科医生","临床医学类","硕士研究生及以上",2,"无","无","执行余党发〔2017〕11号文件待遇"]
[187,"余庆县公路管理所","事业","何霆","085124623388","1542738205@qq.com","工程技术服务","交通土建相关专业","硕士研究生及以上",1,"无","无","执行余党发〔2017〕11号文件待遇"]
[188,"余庆县中医院","事业","何霆","085124623388","1542738205@qq.com","外科医生","外科学（临床医学）","硕士研究生及以上",1,"无","无","执行余党发〔2017〕11号文件待遇"]
[189,"余庆县中医院","事业","何霆","085124623388","1542738205@qq.com","妇科医生","妇产科学（临床医学）","硕士研究生及以上",1,"无","无","执行余党发〔2017〕11号文件待遇"]
[190,"余庆县中医院","事业","何霆","085124623388","1542738205@qq.com","肿瘤科医生","肿瘤学","硕士研究生及以上",1,"无","无","执行余党发〔2017〕11号文件待遇"]
[191,"余庆县水利水电工程建设质量监督管理站","事业","何霆","085124623388","1542738205@qq.com","工程监督","土木工程类、水利工程类","硕士研究生及以上",1,"无","无","执行余党发〔2017〕11号文件待遇"]
[192,"余庆县水土保持工作站","事业","何霆","085124623388","1542738205@qq.com","工程设计","水文学及水资源、水力学及河流动力学、水工构造工程、水利水电工程","硕士研究生及以上",1,"无","无","执行余党发〔2017〕11号文件待遇"]
["绥阳县"]
[193,"绥阳县金融办公室","全额事业","母萍萍","085126124656","1543915995@qq.com","金融办工作人员","金融学、经济学、财务、会计类","硕士研究生及以上",1,"无","从事金融相关工作","引进人才相关待遇"]
[194,"绥阳县中医院","差额事业","肖亚飞","13885209001","1543915995@qq.com","妇产科、放射科、外科、心血管内科、中西儿科","硕士研究生","硕士研究生及以上",6,"无","无","20-30万安家费"]
[195,"绥阳县人民医院","差额事业","向东","13984428830","1543915995@qq.com","呼吸内科、心内科、消化内科、神经内科、普外科、骨科、泌尿外科、产科、妇科、儿科、中医科、感染科、重症监护室、急诊科、神经外科","硕士研究生","硕士研究生及以上",15,"无","无","20万"]
["务川县"]
[196,"务川自治县水务局","全额事业","申琼敏","13312354503","723995513@qq.com","水利水电工程质量监督管理站","水利工程类","硕士研究生及以上",1,"无","具备专业的技能，能承担水利水电等相应工作","享受事业单位编制待遇及人才引进相关政策"]
[197,"务川自治县水务局","全额事业","申琼敏","13312354503","723995513@qq.com","水利水电工程技术服务站","水利工程类","硕士研究生及以上",1,"无","具备专业的技能，能承担水利水电等相应工作","享受事业单位编制待遇及人才引进相关政策"]
[198,"务川自治县国土资源局","全额事业","申玲艳","18585385606","723995513@qq.com","国土资源执法监察大队","矿业工程类、地质学类","硕士研究生及以上",2,"无","具体负责协助开展对土地、矿资、测绘规划等行为的监察。","享受事业单位编制待遇及人才引进相关政策"]
[199,"务川自治县人民医院","差额事业","付体菊","13511896090","723995513@qq.com","临床医师、医技人员","临床医学类、临床检验诊断学","硕士研究生及以上",4,"无","具备所学专业应具备的基本技术能力。","通过我院专家考核组评审，具有学科带头人一次性给予20-50万补助"]
[200,"务川自治县人民医院","差额事业","付体菊","13511896090","723995513@qq.com","临床医师","影像医学与核医学","硕士研究生及以上",1,"无","具备所学专业应具备的基本技术能力。","通过我院专家考核组评审，具有学科带头人一次性给予20-50万补助"]
[201,"务川仡佬族苗族自治县中医院","差额事业","刘明剑","18585386118","723995513@qq.com","临床医学类及临床检验类","临床医学类及临床检验类","硕士研究生及以上",5,"无","具备所学专业应具备的基本技术能力，能够处理专科疑难疾病","事业单位编制待遇及医疗卫生人才引进相关政策"]
[202,"务川仡佬族苗族自治县中医院","差额事业","刘明剑","18585386118","723995513@qq.com","临床医学类","临床医学类","硕士研究生及以上",5,"无","具备所学专业应具备的基本技术能力，能够处理专科疑难疾病","事业单位编制待遇及医疗卫生人才引进相关政策"]
[203,"务川自治县农牧局","全额事业","董治军","085125621639","723995513@qq.com","务川自治县饲草饲料站（水产站）","动物医学、动物科学、草业科学","硕士研究生及以上",2,"无","具备所学专业应具备的基本技能","享受事业单位编制待遇及人才引进相关政策"]
[204,"务川自治县农牧局","全额事业","董治军","085125621639","723995513@qq.com","务川自治县动物疫病预防控制中心","动物医学","硕士研究生及以上",1,"无","能熟练掌握动物疫病预防及监测","享受事业单位编制待遇及人才引进相关政策"]
[205,"务川自治县公路管理所","全额事业","叶文利","18585386920","723995513@qq.com","公路管理所","道路与铁道工程、桥梁与隧道工程","硕士研究生及以上",2,"无","具备专业的技能、能承担道路桥梁建设、公路管理等相应工作","享受事业单位编制待遇及人才引进相关政策"]
[206,"务川仡佬族苗族自治县文化遗产保护中心","全额事业","王海","18585386063","723995513@qq.com","文化遗产保护中心","考古学及博物馆学、民族学类、汉语言文学、历史学类","硕士研究生及以上",1,"无","普通话二级乙等以上水平，有一定的英语会话能力。","享受事业单位编制待遇及人才引进相关政策"]
[207,"务川自治县广播电视台","全额事业","王海","18008520333","654341422@qq.com","务川自治县广播电视台","播音与主持艺术、新闻传媒类","硕士研究生及以上",1,"具备所学专业应具备的基本技能","具备所学专业应具备的基本技能","享受事业单位编制及人才引进相关政策"]
["正安县"]
[208,"正安县投促局","全额事业","汪文奇","13648526953","1103295290@qq.com","办公室工作人员","法学大类","硕士研究生及以上",1,"有相关工作经验者优先","招商引资及其他工作","享受事业单位同类人员待遇，参照县内引进硕士研究生标准享受安家补助"]
[209,"正安县农牧局下属事业单位","全额事业","汪文奇","13648526953","1103295290@qq.com","农产品安全检测人员","食品科学与工程类、化学类","硕士研究生及以上",1,"有相关工作经验者优先","能独立完成农产品质量检测工作","享受事业单位同类人员待遇，参照县内引进硕士研究生标准享受安家补助"]
[210,"正安县农牧局下属事业单位","全额事业","汪文奇","13648526953","1103295290@qq.com","土肥站工作员","农业资源利用类、植物保护类、作物学类","硕士研究生及以上",1,"有相关工作经验者优先","熟悉植物保护、土肥等专业技能、能独立完成业务工作","享受事业单位同类人员待遇，参照县内引进硕士研究生标准享受安家补助"]
[211,"正安县金融办","全额事业","汪文奇","13648526953","1103295290@qq.com","投融资工作人员","金融学","硕士研究生及以上",1,"有相关工作经验者优先","从事管理、协调、投融资工作","享受事业单位同类人员待遇，参照县内引进硕士研究生标准享受安家补助"]
[212,"正安县人民医院","差额事业","郑维辉","18076293266","1321596173@qq.com","临床医生","医学大类","硕士研究生及以上",1,"无","从事B超诊断工作","享受事业单位同类人员待遇；按县内政策享受安家补助费，另由用人单位奖励住房一套。"]
[213,"正安县人民医院","差额事业","郑维辉","18076293266","1321596173@qq.com","临床医生","医学大类","硕士研究生及以上",1,"无","病理科医生","享受事业单位同类人员待遇；按县内政策享受安家补助费，另由用人单位奖励住房一套。"]
[214,"正安县人民医院","差额事业","郑维辉","18076293266","1321596173@qq.com","临床药师","医学大类","硕士研究生及以上",1,"无","临床药学药师","享受事业单位同类人员待遇；按县内政策享受安家补助费，另由用人单位奖励住房一套。"]
[215,"正安县人民医院","差额事业","郑维辉","18076293266","1321596173@qq.com","影像科医生","医学大类","硕士研究生及以上",1,"无","影像科医生","享受事业单位同类人员待遇；按县内政策享受安家补助费，另由用人单位奖励住房一套。"]
[216,"正安县人民医院","差额事业","郑维辉","18076293266","1321596173@qq.com","针灸推拿医生","医学大类","硕士研究生及以上",1,"无","从事针灸推拿岗位工作","享受事业单位同类人员待遇；按县内政策享受安家补助费，另由用人单位奖励住房一套。"]
[217,"正安县人民医院","差额事业","郑维辉","18076293266","1321596173@qq.com","临床医生","医学大类","博士研究生",1,"无","从事神经外科岗位工作","享受事业单位同类人员待遇；按县内政策享受安家补助费，另由用人单位奖励住房一套。"]
[218,"正安县人民医院","差额事业","郑维辉","18076293266","1321596173@qq.com","临床医生","医学大类","博士研究生",1,"无","泌尿科医生","享受事业单位同类人员待遇；按县内政策享受安家补助费，另由用人单位奖励住房一套。"]
[219,"正安县人民医院","差额事业","郑维辉","18076293266","1321596173@qq.com","临床医生","医学大类","硕士研究生及以上",15,"无","主要从事妇产科、口腔医学、呼吸内科、消化内科、神经内科、心血管内科、儿科、眼科、急诊科、麻醉科、重症医学、骨科等方向工作","享受事业单位同类人员待遇；按县内政策享受安家补助费，另由用人单位奖励住房一套。"]
[220,"正安县中医院","差额事业","向文安","13985663475","404377260@qq.com","影像科医生","医学大类","硕士研究生及以上",2,"无","从事CT影像诊断、彩超诊断工作","享受事业单位同类人员待遇；按县内政策享受安家补助费。"]
[221,"正安县中医院","差额事业","向文安","13985663475","404377260@qq.com","临床医生","医学大类","硕士研究生及以上",5,"无","从事妇产科、中医骨伤科、中医外科等方向工作","享受事业单位同类人员待遇；按县内政策享受安家补助费。"]
[222,"正安县妇幼保健院","全额事业","胡勇","18984276333","81641282@qq.com","临床医生","医学大类","硕士研究生及以上",3,"无","妇产方向","享受事业单位同类人员待遇；按县内政策享受安家补助费。"]
[223,"正安县妇幼保健院","全额事业","胡勇","18984276333","81641282@qq.com","临床医生","医学大类","硕士研究生及以上",2,"无","儿科方向","享受事业单位同类人员待遇；按县内政策享受安家补助费。"]
[224,"正安县妇幼保健院","全额事业","胡勇","18984276333","81641282@qq.com","临床医生","医学大类","硕士研究生及以上",1,"无","麻醉方向","享受事业单位同类人员待遇；按县内政策享受安家补助费。"]
[225,"正安县妇幼保健院","全额事业","胡勇","18984276333","81641282@qq.com","临床医生","医学大类","硕士研究生及以上",1,"无","口腔方向","享受事业单位同类人员待遇；按县内政策享受安家补助费。"]
[226,"正安县妇幼保健院","全额事业","胡勇","18984276333","81641282@qq.com","检验科医生","医学大类","硕士研究生及以上",1,"无","检验方向","享受事业单位同类人员待遇；按县内政策享受安家补助费。"]
[227,"正安县妇幼保健院","全额事业","胡勇","18984276333","81641282@qq.com","影像科医生","医学大类","硕士研究生及以上",1,"无","影像方向","享受事业单位同类人员待遇；按县内政策享受安家补助费。"]
[228,"正安县妇幼保健院","全额事业","胡勇","18984276333","81641282@qq.com","临床医生","医学大类","硕士研究生及以上",1,"无","中医方向","享受事业单位同类人员待遇；按县内政策享受安家补助费。"]
["道真县"]
[229,"道真县人民医院","差额事业","韩艳","13985258425","499763529@qq.com","专业技术人员","普通外科","硕士研究生及以上",2,"无","紧缺人才","入编，50万元安家费"]
[230,"道真县人民医院","差额事业","韩艳","13985258425","499763529@qq.com","专业技术人员","骨科","硕士研究生及以上",1,"无","紧缺人才","入编，50万元安家费"]
[231,"道真县人民医院","差额事业","韩艳","13985258425","499763529@qq.com","专业技术人员","神经外科","硕士研究生及以上",1,"无","紧缺人才","入编，50万元安家费"]
[232,"道真县人民医院","差额事业","韩艳","13985258425","499763529@qq.com","专业技术人员","泌尿外科","硕士研究生及以上",1,"无","紧缺人才","入编，50万元安家费"]
[233,"道真县人民医院","差额事业","韩艳","13985258425","499763529@qq.com","专业技术人员","皮肤科","硕士研究生及以上",1,"无","紧缺人才","入编，50万元安家费"]
[234,"道真县人民医院","差额事业","韩艳","13985258425","499763529@qq.com","专业技术人员","妇科","硕士研究生及以上",1,"无","紧缺人才","入编，50万元安家费"]
[235,"道真县人民医院","差额事业","韩艳","13985258425","499763529@qq.com","专业技术人员","病理科","硕士研究生及以上",1,"无","紧缺人才","入编，50万元安家费"]
[236,"道真县人民医院","差额事业","韩艳","13985258425","499763529@qq.com","专业技术人员","呼吸内科","硕士研究生及以上",1,"无","紧缺人才","入编，50万元安家费"]
[237,"道真县人民医院","差额事业","韩艳","13985258425","499763529@qq.com","专业技术人员","消化内科","硕士研究生及以上",1,"无","紧缺人才","入编，50万元安家费"]
[238,"道真县人民医院","差额事业","韩艳","13985258425","499763529@qq.com","专业技术人员","心血管内科","硕士研究生及以上",2,"无","紧缺人才","入编，50万元安家费"]
[239,"道真县人民医院","差额事业","韩艳","13985258425","499763529@qq.com","专业技术人员","血液内科","硕士研究生及以上",1,"无","紧缺人才","入编，50万元安家费"]
[240,"道真县人民医院","差额事业","韩艳","13985258425","499763529@qq.com","专业技术人员","内分泌科","硕士研究生及以上",1,"无","紧缺人才","入编，50万元安家费"]
[241,"道真县人民医院","差额事业","韩艳","13985258425","499763529@qq.com","专业技术人员","神经内科","硕士研究生及以上",1,"无","紧缺人才","入编，50万元安家费"]
[242,"道真县人民医院","差额事业","韩艳","13985258425","499763529@qq.com","专业技术人员","眼科","硕士研究生及以上",1,"无","紧缺人才","入编，50万元安家费"]
[243,"道真县人民医院","差额事业","韩艳","13985258425","499763529@qq.com","专业技术人员","医学影像学","硕士研究生及以上",1,"无","紧缺人才","入编，50万元安家费"]
[244,"道真县人民医院","差额事业","韩艳","13985258425","499763529@qq.com","专业技术人员","口腔科","硕士研究生及以上",1,"无","紧缺人才","入编，50万元安家费"]
[245,"道真县人民医院","差额事业","韩艳","13985258425","499763529@qq.com","专业技术人员","耳鼻喉科","硕士研究生及以上",1,"无","紧缺人才","入编，50万元安家费"]
[246,"道真县人民医院","差额事业","韩艳","13985258425","499763529@qq.com","专业技术人员","产科","硕士研究生及以上",1,"无","紧缺人才","入编，50万元安家费"]
[247,"道真自治县人民政府电子政务办公室","全额事业","李勇","13368522798","13368522798@139.com","专业技术","大数据相关专业","硕士研究生及以上",1,"无","熟练掌握云计算、大数据等相关工作","按道真自治县引进人才办法执行。"]

{"sheet":"第二类，教育系统免费师范生（研究生）职位表","index":2,"n_rows":102,"n_cols":28,"rows_kept":102,"merged":[[0,0,0,27],[1,0,2,0],[1,1,2,1],[1,2,2,2],[1,3,1,25],[1,26,2,26],[1,27,2,27],[3,0,4,0],[5,0,30,0],[31,0,37,0],[38,0,45,0],[41,26,42,26],[41,27,42,27],[46,0,55,0],[56,0,58,0],[59,0,65,0],[66,0,68,0],[69,0,71,0],[69,26,71,26],[69,27,71,27],[72,0,73,0],[72,26,73,26],[74,0,76,0],[78,0,83,0],[78,26,83,26],[78,27,83,27],[84,0,86,0],[84,26,86,26],[84,27,86,27],[87,0,88,0],[89,0,91,0],[89,26,91,26],[89,27,91,27],[92,0,94,0],[92,26,94,26],[92,27,94,27],[95,0,97,0],[95,26,97,26],[95,27,97,27],[98,0,100,0],[98,27,100,27],[101,0,101,2]]}
["表三：遵义市教育事业单位2018年公开招聘免费师范生（研究生）职位表"]
["县（市、区）","序号","招聘学校","招聘学科",{"$nulls":22},"备注及联系电话","各地优惠政策"]
[{"$nulls":3},"语文","数学","英语","政治","历史","地理","物理","化学","生物","音乐","体育","美术","信息\n技术","通用\n技术","心理学","舞蹈","学前\n教育","特殊教育","旅游酒店管理","汽车运用维修","茶学","专业不限","合计"]
["市直  （35人）",1,"遵义市第四中学",2,1,1,1,1,1,2,1,1,null,1,{"$nulls":3},1,{"$nulls":6},2,{"$f":"SUM(D4:Y4)","v":15},"联系人：杨林璋（18788638375）"]
[null,2,"遵义师范学院附属实验学校",3,2,4,2,2,1,{"$nulls":6},2,null,2,null,2,{"$nulls":5},20,"联系人：杨丽娟 （13096784795）；黎建欢（18385040150）","\n"]
["红花岗区（150人）",3,"遵义市第一中学",2,1,1,{"$nulls":6},1,null,null,1,{"$nulls":8},1,7,"注：音乐要求器乐方向。\n联系人：周校长（13096779978）","优惠政策现场公示"]
[null,4,"遵义市第二初级中学",1,1,1,{"$nulls":18},1,4,"联系人：陈校长（13885219996）","优惠政策现场公示"]
[null,5,"遵义市第三中学",1,{"$nulls":3},1,null,1,{"$nulls":14},1,4,"联系人：付校长（18608527055）","优惠政策现场公示"]
[null,6,"遵义市第四初级中学",1,null,null,1,null,null,1,1,{"$nulls":4},1,{"$nulls":8},1,6,"联系人：王校长（13595250019）","优惠政策现场公示"]
[null,7,"遵义市第六中学",null,1,null,null,1,{"$nulls":16},1,3,"联系人：冷校长（13765238777）","优惠政策现场公示"]
[null,8,"遵义市第九中学",null,1,1,{"$nulls":7},1,{"$nulls":10},1,4,"联系人：王校长（13985654683）","优惠政策现场公示"]
[null,9,"遵义市第十一中学",2,1,1,1,1,null,1,null,null,1,1,null,1,{"$nulls":8},2,12,"联系人：付校长（18985217333）","优惠政策现场公示"]
[null,10,"遵义市第十二中学",2,2,2,1,1,null,2,2,null,1,1,null,1,{"$nulls":8},5,20,"联系人：杨校长（18984938988）","优惠政策现场公示"]
[null,11,"遵义市第十七中学",1,1,1,1,{"$nulls":8},1,{"$nulls":8},1,6,"联系人：周校长（13765995955）","优惠政策现场公示"]
[null,12,"遵义市第十八中学",1,{"$nulls":5},1,2,{"$nulls":13},2,6,"联系人：刘校长（13984276688）","优惠政策现场公示"]
[null,13,"遵义市第二十中学",4,3,3,1,1,null,2,1,{"$nulls":13},2,17,"联系人：牟均（15870142323）","优惠政策现场公示"]
[null,14,"遵义市第五十七中学\n（原名城中学）",2,5,3,1,2,{"$nulls":5},1,{"$nulls":10},3,17,"联系人：丁校长（18685261886）","优惠政策现场公示"]
[null,15,"遵义市第二十五中学\n（原金鼎中学）",null,2,{"$nulls":19},1,3,"联系人：姚校长（13511813581）","优惠政策现场公示"]
[null,16,"遵义市第二十八中学\n（原巷口中学）",{"$nulls":7},1,{"$nulls":13},1,2,"联系人：吴校长（18985205455）","优惠政策现场公示"]
[null,17,"遵义市老城小学",{"$nulls":21},3,3,"联系人：蒋校长（15985238282）","优惠政策现场公示"]
[null,18,"遵义市文化小学",{"$nulls":21},5,5,"联系人：付校长（18685246511）","优惠政策现场公示"]
[null,19,"遵义市朝阳小学",{"$nulls":21},5,5,"联系人：付校长（18585205699）","优惠政策现场公示"]
[null,20,"遵义市丰乐小学",{"$nulls":21},2,2,"联系人：田  英（18183422266）","优惠政策现场公示"]
[null,21,"遵义市东风小学",{"$nulls":21},4,4,"联系人：黄校长（18685202551）","优惠政策现场公示"]
[null,22,"遵义市红花岗区第一小学（原育新小学）",{"$nulls":21},1,1,"注：只招免师生。\n联系人：黎校长（13985242552）","优惠政策现场公示"]
[null,23,"遵义市红花岗区第二小学（原新文小学）",{"$nulls":21},1,1,"注：只招免师生。\n联系人：付校长（18385319933）","优惠政策现场公示"]
[null,24,"遵义市红花岗区第四小学（原建文小学）",{"$nulls":21},1,1,"注：只招免师生。\n联系人：张校长（13984526982）","优惠政策现场公示"]
[null,25,"遵义市红花岗区第五小学（原中华小学）",{"$nulls":21},4,4,"注：只招免师生。\n联系人：杨校长（13668526816）","优惠政策现场公示"]
[null,26,"遵义市红花岗区第六小学（原长征小学）",{"$nulls":21},2,2,"注：只招免师生。\n联系人：赵校长（15985089422）","优惠政策现场公示"]
[null,27,"遵义市红花岗区第七小学（原民政学校）",{"$nulls":21},1,1,"注：只招免师生。\n联系人：陈校长（13885277729）","优惠政策现场公示"]
[null,28,"遵义市红花岗区第八小学（原名城学校）",{"$nulls":21},2,2,"注：只招免师生。\n联系人：胡校长（13518520086）","优惠政策现场公示"]
["红花岗区（150人）",29,"遵义市红花岗区第十小学（原万里小学）",{"$nulls":21},1,1,"注：只招免师生。\n联系人：吴校长（13985674016）","优惠政策现场公示"]
[null,30,"遵义市红花岗区第十二小学（原洛江小学）",{"$nulls":21},1,1,"注：只招免师生。\n联系人：李校长（13985616940）","优惠政策现场公示"]
[null,31,"遵义市红花岗区第十三小学（原迎红小学）",{"$nulls":21},2,2,"注：只招免师生。\n联系人：舒校长（13511819888）","优惠政策现场公示"]
[null,32,"遵义市红花岗区第十四小学（原海风井小学）",{"$nulls":21},1,1,"注：只招免师生。\n联系人：何校长（13639206333）","优惠政策现场公示"]
[null,33,"遵义市红花岗区第十九小学（原舟水小学）",{"$nulls":21},1,1,"注：只招免师生。\n联系人：宋校长（18685939383）","优惠政策现场公示"]
[null,34,"遵义市红花岗区第一幼儿园",{"$nulls":16},1,{"$nulls":5},1,"注：只招免师生。\n联系人：曹园长（13984206660）","优惠政策现场公示"]
[null,35,"遵义市红花岗区机关幼儿园",{"$nulls":16},1,{"$nulls":5},1,"注：只招免师生。\n联系人：邱园长（13618521988）","优惠政策现场公示"]
["汇川区\n（63人） ",36,"遵义航天高级中学",1,1,4,{"$nulls":5},2,null,2,null,1,null,1,{"$nulls":7},12,"联系人：建  颖（18085210081）"]
[null,37,"遵义市第五中学",1,2,3,{"$nulls":19},6,"联系人：吴  蓓（13708520881）"]
[null,38,"遵义市第十三中学",2,1,2,{"$nulls":19},5,"联系人：李应茂（17716665071）"]
[null,39,"遵义航天中学",3,1,null,1,{"$nulls":18},5,"联系人：陈光美             （0851-28613398）"]
[null,40,"遵义航天中学恒大分校",3,3,3,1,1,",1",2,1,1,1,1,1,null,null,1,{"$nulls":7},19]
[null,41,"遵义市第八中学",1,1,1,{"$nulls":3},1,1,{"$nulls":13},1,6,"联系人：王  旭          (18085218037)"]
[null,42,"遵义市第十六中学",1,2,1,{"$nulls":3},2,1,{"$nulls":13},1,8,"联系人：禹远贵（15085598898）"]
[null,43,"遵义市第十九中学",1,1,{"$nulls":20},2,"联系人：刘晓寒（18585259868）"]
["播州区\n（80人）",44,"遵义南白中学",2,3,3,1,null,null,2,1,2,null,1,null,2,1,1,{"$nulls":6},1,20,"联系人：张艳玲     (18985669991)"]
[null,45,"遵义市二十一中学\n（原遵义县第二中学）",1,{"$nulls":3},1,1,{"$nulls":6},1,{"$nulls":8},14,18,"联系人：涂佳明（13511895995）"]
[null,46,"遵义市二十二中学\n（原遵义县第三中学）",6,5,2,{"$nulls":3},5,{"$nulls":15},18,"联系人：谭明海（13985249343）"]
[null,47,"遵义市五十二中学\n（原遵义县第五中学）",{"$nulls":21},3,3,"联系人：张孟贵（13595256673）"]
[null,48,"遵义市五十三中学\n（原遵义县第六中学）",{"$nulls":21},4,4,"联系人：吴显超     (13708503698)"]
[null,49,"遵义市五十五中学\n（原遵义县第八中学）",1,1,1,{"$nulls":19},3,"联系人：王  灿（18798133432）"]
[null,50,"播州区中等职业学校",{"$nulls":9},1,2,{"$nulls":5},3,{"$nulls":5},6,"注：音乐要求钢琴或声乐方向；体育要求篮球方向。\n联系人：常磊磊\n（15902629562）"]
[null,51,"遵义市播州区第一小学",{"$nulls":21},2,2,"联系人：胡小青（18166955370）"]
[null,52,"遵义市播州区特教学校",{"$nulls":16},1,1,{"$nulls":4},2,"联系人：何长玉（13027877880）"]
[null,53,"遵义市播州区鸭溪中学",{"$nulls":21},4,4,"联系人：徐清松     (13638521002)"]
["新蒲新区（135人）",54,"遵义市新区文化小学",2,2,1,{"$nulls":11},1,1,{"$nulls":5},1,8,"联系人：黄老师    (18108521023)"]
[null,55,"遵义市第十四中学",1,1,{"$nulls":19},1,3,"联系人：何老师（13678523302）"]
[null,56,"遵义市第十五中学",{"$nulls":5},1,1,{"$nulls":5},1,null,1,{"$nulls":6},1,5,"联系人：酉老师（13888525590）"]
["新蒲新区\n（135人）",57,"遵义市第四十二中学",2,1,{"$nulls":5},1,{"$nulls":13},1,5,"联系人：刘老师（15085048121）"]
[null,58,"遵义市第四十八中学",{"$nulls":7},1,{"$nulls":14},1,"联系人：谢老师（13984299875）"]
[null,59,"新蒲新区第三小学",4,2,1,{"$nulls":6},1,1,1,1,{"$nulls":8},1,12,"联系人：韦老师 （13985687202）"]
[null,60,"新蒲新区第四小学",1,2,{"$nulls":8},1,{"$nulls":10},1,5,"联系人：李老师（13595295983）"]
[null,61,"遵义市第四十中学",null,null,1,null,null,1,1,{"$nulls":3},1,{"$nulls":10},1,5,"联系人：施老师\n（15985224315）\n"]
[null,62,"新蒲新区第二小学",1,1,{"$nulls":12},1,{"$nulls":6},1,4,"联系人：谭先莉                （13985625733）"]
[null,63,"北师大遵义附属学校",14,17,15,5,6,5,3,null,3,5,6,2,2,null,null,3,{"$nulls":5},1,87,"联系人：杨  爽（17602110269）"]
["南部新区（41人）",64,"遵义市第五十四中学",1,1,1,1,1,1,1,1,1,1,1,1,1,1,1,{"$nulls":6},2,17,"联系人：周家满（13984213180）"]
[null,65,"遵义市第二中学",1,1,1,1,1,1,1,2,1,null,1,1,1,1,1,1,{"$nulls":5},2,{"$f":"SUM(D68:Y68)","v":18},"联系人：陈永强（18285238666）"]
[null,66,"遵义市红花岗区第十八小学",{"$nulls":9},1,1,1,1,{"$nulls":8},2,6,"联系人：冯  勇（13984952700）"]
["桐梓县\n（24人）",67,"桐梓县第一中学",1,1,{"$nulls":4},3,2,1,{"$nulls":12},2,10,"联系人：任  杰（13765988330）"]
[null,68,"桐梓县第二高级中学",1,2,2,{"$nulls":3},1,1,1,{"$nulls":12},2,10]
[null,69,"桐梓县蟠龙高级中学",1,1,1,null,null,1,1,1,1,{"$nulls":3},1,{"$nulls":8},2,10]
["绥阳县\n（12人）",70,"绥阳县绥阳中学",1,1,{"$nulls":4},2,2,{"$nulls":14},6,"联系人：李家强  （15870132918）；文涛（18985262255）","   优惠条件：学校能提供教师周转房一套。"]
[null,71,"绥阳县中等职业学校",null,2,2,{"$nulls":15},1,1,null,null,6,null,"  免费提供食宿，免费提供公租房一套（居住权）。"]
["正安县\n（42人）",72,"正安县第一中学",2,2,2,1,1,1,1,1,1,{"$nulls":13},12,"注：只招免师生。\n联系人：卢天智（13985679470）","    享受安家费10万。免费师范本科生学校提供一套单身教师公租房"]
[null,73,"正安县第二中学",2,2,2,1,1,1,1,1,1,{"$nulls":13},12,"注：只招免师生。\n联系人：湛玉强（13765997239）","   享受安家费10万。免费师范本科生学校提供一套单身教师公租房。"]
[null,74,"正安县第八中学",3,3,3,1,1,1,2,2,1,{"$nulls":12},1,18,"注：只招免师生。\n联系人：何济阳（13885229138）","   享受安家费10万。免费师范本科生学校提供一套单身教师公租房。"]
["道真县\n（13人）",75,"道真中学",3,3,2,{"$nulls":3},1,1,1,null,1,{"$nulls":10},1,13,"联系人：王勤海（13885223222）","   免费师范生提供单身教师公租房并发给一次性安家费1万元；硕士研究生提供单身教师公租房并发给一次性安家费3万元，外籍硕士研究生另再享受一次性异地生活补助费2万元。    "]
["湄潭县\n（36人）",76,"湄潭县求是高级中学",null,1,{"$nulls":4},1,null,1,null,1,{"$nulls":10},2,6,"联系人：钟寿星\n（13087879256）","   在试用期内直接执行转正定级工资标准；学校免费提供住宿。"]
[null,77,"湄潭县湄江高级中学",2,1,4,null,null,2,null,2,1,{"$nulls":3},1,null,null,1,{"$nulls":5},4,18]
[null,78,"湄潭县中等职业学校",{"$nulls":16},1,{"$nulls":3},1,2,4]
[null,79,"湄潭中学",null,1,{"$nulls":4},1,{"$nulls":14},2,4]
[null,80,"湄潭县茶城中学",{"$nulls":10},1,{"$nulls":10},1,2]
[null,81,"湄潭县协育中学",{"$nulls":6},1,{"$nulls":14},1,2]
["凤冈县\n（20人）",82,"凤冈县第一中学",1,1,1,{"$nulls":3},1,1,{"$nulls":4},1,{"$nulls":8},1,7,"联系人：黄  顺（15902523662）；\n关中刚（13985628938）\n","   国家规定财政工资，解决教师周转房。"]
[null,83,"凤冈县第二中学",1,1,1,null,1,null,1,1,1,{"$nulls":12},1,8]
[null,84,"凤冈县中等职业学校",1,1,1,{"$nulls":12},1,{"$nulls":5},1,5]
["务川县\n（20人）",85,"务川中学",2,2,2,{"$nulls":3},1,1,1,{"$nulls":3},1,{"$nulls":9},10,"注：只招免师生。\n联系人：田维贵（13985676661）"]
[null,86,"务川民族中学",{"$nulls":4},1,2,null,3,2,{"$nulls":4},1,null,1,{"$nulls":6},10,"注：研究生必须要求本科与硕士专业一致或相近（符合教育部专业目录中同一大类）。\n联系人：覃智锋（13595293300）"]
["余庆县\n（18人）",87,"余庆县他山中学",2,1,1,{"$nulls":3},1,1,{"$nulls":4},1,{"$nulls":9},7," 联系人：王天坤（13087876368）"," 优惠政策现场公示"]
[null,88,"余庆县中等职业学校",null,1,{"$nulls":7},1,1,{"$nulls":5},1,{"$nulls":5},4]
[null,89,"贵州省余庆中学",1,1,1,null,1,null,2,null,1,{"$nulls":13},7]
["习水县\n（57人）",90,"习水县第一中学",5,6,5,1,null,2,2,1,null,null,1,null,null,1,{"$nulls":8},24,"联系人：王福海（13511879780、18984266443）","按国家相关政策执行"]
[null,91,"习水县第五中学",4,4,5,1,null,1,2,2,{"$nulls":14},19]
[null,92,"习水县绿洲高级中学",2,1,2,null,1,1,2,1,2,1,1,{"$nulls":11},14]
["赤水市\n（6人）",93,"赤水市中等职业学校",{"$nulls":12},1,{"$nulls":9},1,"注：具备高中相应学科教师资格，研究生需本研专业一致。\n联系人：喻利云（13035532748）；田少平（18385269270）","1.公开考核招聘且在我市工作满5年及以上的具有硕士学历学位或副高级专业技术职务任职资格的紧缺人才、全日制普通高校第一批次录取毕业生、第二批次录取毕业生分别按4万元/人、1.5万元/人、1万元/人预算兑现安家补助费。\n2.公开考核招聘且在我市工作满5年及以上的具有硕士学历学位或副高级专业技术职务任职资格的紧缺人才按1万元/人预算兑现生活补助费，全日制普通高校第一批次录取毕业生和第二批次录取毕业生按0.5万元/人预算兑现生活补助费。\n3.公开考核招聘且非赤水户籍的紧缺专业人才按200元/人·月预算发放异地人才生活补助费，按年度发放。\n4.具有硕士学位或副高级专业技术职务任职资格的免费提供面积不低于100平方米的住房一套。连续在赤水市工作满10年且年度考核均为合格及以上等次的，可获得住房全产权。"]
[null,94,"赤水市第一中学",1,{"$nulls":6},1,1,{"$nulls":3},1,{"$nulls":9},4]
[null,95,"赤水市第三中学",1,{"$nulls":21},1]
["仁怀市\n（10人）",96,"仁怀市第五中学",{"$nulls":6},2,null,null,1,1,{"$nulls":11},4,"注：只招免师生。音乐需要舞蹈方向，体育需要足球方向。\n联系人：陈小润（18089663324）","   受聘列编人员在学校无法提供周转房时每人按月发放500元的房租补贴，发放期限3年，若3年内已购房居住的，从居住之日起停发房租补贴；在仁怀购房的可一次性享受10万元的购房补贴，但需服务满9年，若不能完成9年定岗服务则全额退还所得购房本金，9年定岗服务期满后需经学校同意方能转移房屋产权。\n   签约人员基本服务期为三年，如乙方（学生）违约，服务年限差一周年须向甲方支付一万元的违约金，不足一周年的按一周年计算。             "]
[null,97,"仁怀市第四中学",2,2,{"$nulls":20},4,"注：只招免师生。\n联系人：陈小润（18089663324）"]
[null,98,"仁怀市外国语学校",null,1,1,{"$nulls":19},2,"注：只招免师生。\n联系人：陈小润（18089663324）"]
["合计",null,null,{"$f":"SUM(D4:D101)","v":111},112,96,24,27,24,58,42,28,16,30,7,25,5,11,8,10,1,1,1,1,130,768]

{"sheet":"第三类，企业职位表","index":3,"n_rows":89,"n_cols":14,"rows_kept":89,"merged":[[0,0,0,13]]}
["表四：遵义市2017年赴部分高校人才招聘需求目录（企业）"]
["序号","单位名称","单位性质","单位地址","单位联系人","联系电话","邮箱","需求岗位名称","需求专业(职称)","学历要求","数量","履历要求","需求描述","提供待遇"]
[1,"遵义市汇川区城市建设投资经营有限公司","国有企业","汇川区","林琴琴","085123178558","1085122047@qq.com","工程管理","土木工程、建筑工程管理、建筑学、城市规划、工程造价、电气工程及其自动化、给排水科学与工程、工程力学、建筑环境与设备工程","全日制本科及以上",3,"无","负责工程项目实施全过程管理","5000-7000/月"]
[2,"遵义市汇川区城市建设投资经营有限公司","国有企业","汇川区","林琴琴","085123178558","1085122047@qq.com","征地拆迁","土木工程","全日制本科及以上",3,"无","负责项目中征地拆迁事宜","5000-7000/月"]
[3,"遵义市汇川区城市建设投资经营有限公司","国有企业","汇川区","林琴琴","085123178558","1085122047@qq.com","主办会计","会计学、财务管理","全日制本科及以上",2,"无","40周岁以下，2年以上财务会计工作经验，独立承担财务、会计工作","5000-7000/月"]
[4,"遵义市汇川区城市建设投资经营有限公司","国有企业","汇川区","林琴琴","085123178558","1085122047@qq.com","法务岗位","法学专业","全日制本科及以上",1,"无","从事公司法务日常工作，5年以上相关工作经验","5000-7000/月"]
[5,"遵义经济技术开发区投资建设有限公司","国有企业","汇川区","夏艳","085128207320","1085122047@qq.com","给排水工程师","给排水等相关专业；工程类中级职称及以上。","全日制本科及以上",2,"无","给排水等相关专业，985或211全日制本科及以上学历","五险一金、带薪年休、增量补贴、公租房、早中餐"]
[6,"遵义经济技术开发区投资建设有限公司","国有企业","汇川区","夏艳","085128207320","1085122047@qq.com","项目工程师","工民建、路桥、房建等工程类专业；工程类中级职称及以上。","全日制本科及以上",2,"无","工民建、路桥、房建等工程类专业，985或211全日制本科及以上学历，年龄35周岁以下，工程类中级职称及以上，相关工作经验5年以上，中共党员优先。","五险一金、带薪年休、增量补贴、公租房、早中餐"]
[7,"遵义经济技术开发区投资建设有限公司","国有企业","汇川区","夏艳","085128207320","1085122047@qq.com","物业公司高管","物业管理、房地产经营管理等相关专业全日制大学本科及以上学历；具备物业管理资格证。","全日制本科及以上",1,"无","物业管理、房地产经营管理等相关专业全日制大学本科及以上学历，年龄35周岁以下，具备物业管理资格证，熟悉现代数字化物业管理流程，具备大型物业管理、产业园区物业管理工作经验5年以上，中共党员优先。","五险一金、带薪年休、增量补贴、公租房、早中餐"]
[8,"遵义经济技术开发区投资建设有限公司","国有企业","汇川区","夏艳","085128207320","1085122047@qq.com","水处理技术员","化工类相关专业；具备相关专业初级职称及以上。","全日制本科及以上",1,"无","化工类相关专业，985或211全日制本科及以上学历，年龄35岁以下，具备相关专业初级职称及以上，相关工作经验2年以上，中共党员优先","五险一金、带薪年休、增量补贴、公租房、早中餐"]
[9,"遵义经济技术开发区投资建设有限公司","国有企业","汇川区","夏艳","085128207320","1085122047@qq.com","化工分析员","化工分析、化工类相关专业；相关专业初级职称及以上。","全日制本科及以上",1,"无","化工分析、化工类相关专业，985或211全日制本科及以上学历，年龄35岁以下，具备相关专业初级职称及以上，相关工作经验2年以上，中共党员优先，熟悉生活供水及污水处理排放标准，能对各项指标进行分析和数据处理，到达合格水要求。","五险一金、带薪年休、增量补贴、公租房、早中餐"]
[10,"遵义经济技术开发区投资建设有限公司","国有企业","汇川区","夏艳","085128207320","1085122047@qq.com","电气自动化技术员","电气工程及自动化、自动化技术等相关专业；高低压电工证、相关专业初级职称及以上。","全日制本科及以上",1,"无","电气工程及自动化、自动化技术等相关专业，985或211全日制本科及以上学历，年龄35岁以下，熟悉电气高、低压一次设备和二次设备及控制回路，对PLC、变频器、仪器仪表能进行故障处理，熟悉DCS（人机界面）控制系统，有高、低压电工证，相关专业初级职称及以上，相关工作经验2年以上，中共党员优先。","五险一金、带薪年休、增量补贴、公租房、早中餐"]
[11,"遵义经济技术开发区投资建设有限公司","国有企业","汇川区","夏艳","085128207320","1085122047@qq.com","遵义市汇川区雨泽小额贷款有限公司（全资子公司）风控总监","经济、金融、财会、管理、法律专业，有5年工作经验以上的，专业可以放宽","全日制本科及以上",1,"无","1、根据公司发展规划、业务需求及市场调研，主导产品规划及开发设计；2、组织开展各类风险的识别、衡量、监控、预警及处理的工具、技术研发；3、建设风控体系，拟定风险管理流程和风险管理制度，设计风险管理岗位的工作指引和运作流程、解决方案等。","五险一金、带薪年休、增量补贴、公租房、早中餐"]
[12,"遵义经济技术开发区投资建设有限公司","国有企业","汇川区","夏艳","085128207320","1085122047@qq.com","机械技术员","机电一体化、机械类相关专业；相关专业初级职称及以上。","全日制本科及以上",1,"无","机电一体化、机械类相关专业，985或211全日制本科及以上学历，年龄35岁以下，熟悉管道安装、管道焊接及泵体原理及检修，熟悉静态机械设备和动态机械设备的检修找正和对中技术，相关专业初级职称及以上，相关工作经验2年以上，中共党员优先。","五险一金、带薪年休、增量补贴、公租房、早中餐"]
[13,"遵义经济技术开发区投资建设有限公司","国有企业","汇川区","夏艳","085128207320","1085122047@qq.com","遵义市汇川区雨泽小额贷款有限公司（全资子公司）副总经理","经济、金融、财会、管理、法律专业，有5年工作经验以上的，专业可以放宽","全日制本科及以上",1,"无","1、根据公司业务策略，制定与市场发展相适应的业务拓展方案，落实公司下达的各项业绩指标；定期总结公司业务过程中出现的问题，并提出相关解决方案；2、根据公司内部控制要求，健全和完善公司风险管理体系，推动公司风险管理水平的提升；加强对各项业务的动态监控，优化监控流程，确保公司业务在风险可控、可预测的情况下开展。","五险一金、带薪年休、增量补贴、公租房、早中餐"]
[14,"遵义经济技术开发区投资建设有限公司","国有企业","汇川区","夏艳","085128207320","1085122047@qq.com","遵义市汇川区雨泽小额贷款有限公司（全资子公司）风控部副部长","经济、金融、财会、法律专业，有3年工作经验以上的，专业可以放宽","全日制本科及以上",1,"无","1、组织开展各类风险的识别、衡量、监控、预警及处理的工具、技术研发；2、组织开展对项目风险状况定期分析（包括流动性风险、信用风险、市场风险和操作风险、产品风险等），统计分析项目运行情况；3、按照公司风控要求，对申请贷款的客户进行全方位的合规性审查，核查客户及提交文件的真实性，及时向公司汇报审核情况，给予客观真实意见，在规定时间内完成客户资料的审批，保证客户贷款发放的时效性","五险一金、带薪年休、增量补贴、公租房、早中餐"]
[15,"遵义经济技术开发区投资建设有限公司","国有企业","汇川区","夏艳","085128207320","1085122047@qq.com","遵义市汇川区雨泽小额贷款有限公司（全资子公司）稽核审计部副部长","经济、金融、财会、审计、法律专业，有3年工作经验以上的，专业可以放宽","全日制本科及以上",1,"无","1、根据公司发展的目标及要求，拟定并完善内部稽核审计制度和流程，制定稽核审计计划；2、负责稽核审计各部门、各岗位对公司各项管理制度、操作流程等的执行情况；3、负责对稽核审计工作中所发现的内部制度缺失等问题，提出完善或改进的建议；4、跟踪监控公司的财产和资金使用情况，及时发现风险并提出改进建议","五险一金、带薪年休、增量补贴、公租房、早中餐"]
[16,"遵义经济技术开发区投资建设有限公司","国有企业","汇川区","夏艳","085128207320","1085122047@qq.com","遵义市汇川区雨泽小额贷款有限公司（全资子公司）业务部副部长","经济、金融、财会、管理专业，有3年工作经验以上的，专业可以放宽","全日制本科及以上",1,"无","1、根据公司的发展目标及要求，拟定业务部年度、季度及月度的业绩目标；2、对业务工作进行指导、完善及培训，并做好业务人员的传、帮、带工作；3、按照公司信贷业务的操作规程，做到规范放贷、安全放贷、及时放贷、准时收贷。","五险一金、带薪年休、增量补贴、公租房、早中餐"]
[17,"播州区国投集团公司","国有企业","遵义市播州区南白万寿广场综合楼7楼","罗静江","085127230509","793500032@qq.com","财务主办","财务","硕士及以上",2,"无","具备相应专业中高级职称，年龄40岁以下；协助财务总监财务管理工作","享受副总待遇"]
[18,"播州区国投集团公司","国有企业","遵义市播州区南白万寿广场综合楼7楼","罗静江","085127230509","793500032@qq.com","融资客户经理","金融","硕士及以上",2,"无","年龄40岁以下，熟悉掌握金融专业知识，熟悉融资租赁项目操作和相关政策","享受副总待遇"]
[19,"播州区国投集团公司","国有企业","遵义市播州区南白万寿广场综合楼7楼","罗静江","085127230509","793500032@qq.com","工程项目主办","土木工程","硕士及以上",1,"无","年龄40岁以下，熟悉各类土木工程的建设方针、政策和法规，具有一定实际工作能力","享受副总待遇"]
[20,"播州区国投集团公司","国有企业","遵义市播州区南白万寿广场综合楼7楼","罗静江","085127230509","793500032@qq.com","法务主办","法律","硕士及以上",1,"无","年龄40岁以下，熟悉并掌握司法律事务管理体系和制度流程，协助公司法务工作","享受副总待遇"]
[21,"赤水市国有资产投资发展有限公司","国有企业","贵州省赤水市文华办人民东路259号","李梅","18275642040","519223823@qq.com","会计师","会计及相关专业","全日制本科及以上",1,"无","熟悉财务管理工作，具有5年以上的财务管理工作经验，具有较强的统筹协调能力。","面议"]
[22,"赤水市国有资产投资发展有限公司","国有企业","贵州省赤水市文华办人民东路259号","李梅","18275642040","519223823@qq.com","市场营销师","市场营销管理","全日制本科及以上",1,"无","主要负责公司涉及国有资产管理：有效规划全市国有资产，让国有资产得到合理应用，避免资产流失。具有相关规划经验、市场营销工作经验，5年以上工作国有资产管理经验，具有较强统筹协调能力。","面议"]
[23,"赤水市国有资产投资发展有限公司","国有企业","贵州省赤水市文华办人民东路259号","李梅","18275642040","519223823@qq.com","工程造价师","土建管理","全日制本科及以上",1,"无","参与工程招标，协调编制工程招标标底，为评标工作提供可靠依据，参加工程竣工验收等，为工程项目预算提供切实可行依据。","面议"]
[24,"赤水市国有资产投资发展有限公司","国有企业","贵州省赤水市文华办人民东路259号","李梅","18275642040","519223823@qq.com","法律顾问","法律、工程项目管理","全日制本科及以上",1,"无","为公司提供法律支持，具有较为丰富的法律知识和实战工作经验。","面议"]
[25,"赤水旅游发展股份有限公司","国有企业","贵州省赤水游客中心","陈敏","085123306905","867098860@qq.com","韩语导游","旅游及相关专业","本科及以上",1,"无","1、熟悉导游工作程序、有带团经验优先；2、有较强的组织能力和应变能力及较强的服务意识；3、吃苦耐劳、责任心强，工作细心有条理；4、需会讲韩语。","5000"]
[26,"赤水旅游发展股份有限公司","国有企业","贵州省赤水游客中心","陈敏","085123306905","867098860@qq.com","闽南语导游","旅游及相关专业","本科及以上",1,"无","1、熟悉导游工作程序、有带团经验优先；2、有较强的组织能力和应变能力及较强的服务意识；3、吃苦耐劳、责任心强，工作细心有条理；4、需会讲闽南语。","5000"]
[27,"赤水旅游发展股份有限公司","国有企业","贵州省赤水游客中心","陈敏","085123306905","867098860@qq.com","粤语导游","旅游及相关专业","本科及以上",1,"无","1、熟悉导游工作程序、有带团经验优先；2、有较强的组织能力和应变能力及较强的服务意识；3、吃苦耐劳、责任心强，工作细心有条理；4、需会讲粤语。","5000"]
[28,"赤水仁岸集团创意有限公司","民营企业","贵州省赤水市河滨西路御水蓝天城二楼","熊国海","13985644525","513244563@qq.com","景区营运管理","旅游管理","本科",1,"无","1.本科以上学历，5年以上工作经验，3年以上大型旅游产业公司同等职位任职经历，熟悉旅游文化产业运营管理及景区客运经营管理；2.具有成功的旅游项目全程运营实战经验，熟悉旅游行业的政策法规；","1.2-2万/月+效益分红+五险一金"]
[29,"赤水仁岸集团创意有限公司","民营企业","贵州省赤水市河滨西路御水蓝天城二楼","熊国海","13985644525","513244563@qq.com","众创客空间管理","无","本科",1,"无","熟悉孵化器运营管理全过程，熟悉投资、上市的相关法律、财务、税务知识，有园区管理工作经验者优先；2、解读能力强，较好的公文写作能力；3、熟悉国家孵化器产业和企业创新相关政策，具有项目申报、活动策划实施经验；","1.2-1.6万/月+效益分红+五险一金"]
[30,"赤水仁岸集团创意有限公司","民营企业","贵州省赤水市河滨西路御水蓝天城二楼","熊国海","13985644525","513244563@qq.com","高级财务管理","财务管理","本科",2,"无","1、专业人员职位，在上级的领导和监督下定期完成量化的工作要求，并能独立处理和解决所负责的任务；2、协助财务预算、审核、监督工作，按照公司及政府有关部门要求及时编制各种财务报表并报送相关部门；3、负责员工报销费用的审核、凭证的编制和登帐；","1-1.5万/月+效益分红+五险一金"]
[31,"赤水仁岸集团创意有限公司","民营企业","贵州省赤水市河滨西路御水蓝天城二楼","熊国海","13985644525","513244563@qq.com","软件开发营运经理","计算机及软件技术开发","本科",2,"无","软件开发和营运管理","1.2-2万/月+效益分红+五险一金"]
[32,"赤水仁岸集团创意有限公司","民营企业","贵州省赤水市河滨西路御水蓝天城二楼","熊国海","13985644525","513244563@qq.com","超市营运管理","连锁经营管理相关专业","本科",2,"无","1、市场营销、企业管理等专业大专以上学历；2、5年以上销售工作经验，3年以上卖场超市管理经验；3、熟悉卖场业务操作流程及客户关系管理体系的建立方法，对货品分析、产品陈列、销售服务和销售技巧等方面有独到的见解；4、具有良好的公关协调及谈判能力、表达能力强，优秀的团队管理能力；","1.22万/月+效益分红+五险一金"]
[33,"赤水仁岸集团创意有限公司","民营企业","贵州省赤水市河滨西路御水蓝天城二楼","熊国海","13985644525","513244563@qq.com","法务经理","法律相关专业","本科",1,"无","1、法律专业，本科以上学历；2、有3年以上同岗位工作经验；3、工作踏实，有敬业精神；4、有较强的沟通能力、文字写作能力，工作责任心，适应接受能力强。","1.2-1.6万/月+效益分红+五险一金"]
[34,"赤水仁岸集团创意有限公司","民营企业","贵州省赤水市河滨西路御水蓝天城二楼","熊国海","13985644525","513244563@qq.com","人力资源管理","人力资源相关专业","本科",1,"无","1、人力资源管理或相关专业本科以上学历；2、三年以上人力资源管理工作经验；3、熟悉人力资源招聘、薪酬、绩效考核、培训等规定和流程，熟悉国家各项劳动人事法规政策；4、具有较强的语言表达能力、人际交往能力、应变能力、沟通能力及解决问题的能力，有亲和力，较强的责任感与敬业精神；","1.2-2万/月+效益分红+五险一金"]
[35,"赤水市红城绿洲旅游发展有限公司","民营企业","贵州省赤水市大同镇","蔡宗富","13984536622","1917730200@qq.com","副总","旅游管理","本科",1,"无","公司运营管理","0.5—1.5万元（可入股）"]
[36,"丙安古镇文化旅游投资开发有限责任公司","国有企业","贵州省赤水市丙安镇政府四楼","刘小超","13885291811","12582071@qq.com","旅游管理","旅游管理专业","本科",2,"无","旅游市场开发、策划、营销","底薪3000+补贴"]
[37,"习水县国有资产投资（集团）有限公司","国有企业","贵州省习水县西城区","罗太会","15186662658","360259203@qq.com","计算机专业人员","计算机相关专业","硕士及以上",1,"无","负责公司各项指标规划，建立高校运行公司运作模式，改变传统国有企业运作模式","5000以上"]
[38,"习水县国有资产投资（集团）有限公司","国有企业","贵州省习水县西城区","罗太会","15186662658","360259203@qq.com","项目部施工管理专业人才","建筑、工程类","硕士及以上",2,"无","具有拟建、在建、已建项目管理方面的专业知识","5000以上"]
[39,"习水县国有资产投资（集团）有限公司","国有企业","贵州省习水县西城区","罗太会","15186662658","360259203@qq.com","融资部金融行业专业人才","金融相关专业","硕士及以上",2,"无","项目融资、公司编制投资发展项目，确保拟贷项目贷款成功等方面的专业知识","5000以上"]
[40,"习水县国有资产投资（集团）有限公司","国有企业","贵州省习水县西城区","罗太会","15186662658","360259203@qq.com","公司营运管理人员","公司营运、市场管理相关专业","硕士及以上",2,"无","负责公司实体运作、创新公司发展模式","5000以上"]
[41,"贵州习水县勤韵茶业有限公司","民营企业","贵州省习水县仙源镇","周枞胜","18085240555","1114822124@qq.com","副总经理","工商管理/农业专业","专科及以上",2,"无","熟练公司运营管理。熟悉农业（茶业）生产管理，懂得茶叶最佳","5000以上,五险（面议）"]
[42,"贵州习水县勤韵茶业有限公司","民营企业","贵州省习水县仙源镇","周枞胜","18085240555","1114822124@qq.com","市场营销人才","市场营销","专科及以上",5,"无","熟悉茶叶行业，懂得市场营销","底薪2500＋提成,五险"]
[43,"贵州习水县勤韵茶业有限公司","民营企业","贵州省习水县仙源镇","周枞胜","18085240555","1114822124@qq.com","办公室文员","文员/会计","专科及以上",2,"无","熟悉办公软件，文字功底或财会业务熟练","3000以上,五险"]
[44,"习水腾达农副产品发展有限公司","民营企业","贵州省习水县二郎镇高速路下道口","何宇红","18984223437","986134547@qq.com","招商总监","销售、营销策划","本科及以上",1,"5年以上销售招商经验，微商、互联网+相关经验优先考虑","良好的职业操守，诚实守信，团队组织能力及责任感强","面议"]
[45,"习水腾达农副产品发展有限公司","民营企业","贵州省习水县二郎镇高速路下道口","何宇红","18984223437","986134547@qq.com","营销总监","市场营销、管理类","本科及以上",1,"市场营销、管理类、广告类等相关行业5年以上工作经验","具有较强的组织协调能力，统筹力、执行力；高度的工作热情，良好的团队合作精神。","面议"]
[46,"习水腾达农副产品发展有限公司","民营企业","贵州省习水县二郎镇高速路下道口","何宇红","18984223437","986134547@qq.com","食品生产质量、安全负责人","农产品加工，食品科学，食品安全与品控的专业、食品质量与安全","本科及以上",2,"从事食品行业生产质量管理3年以上经验","熟悉掌握食品质量安全知识和相关法律知识；主持、制订并审批公司企业中、长期发展规划，确保质量体系的运行；工作中努力增强职工的质量意识，不断提高产品质量和工作质量；组织审定产品升级创优，新产品开发，质量改进","面议"]
[47,"习水腾达农副产品发展有限公司","民营企业","贵州省习水县二郎镇高速路下道口","何宇红","18984223437","986134547@qq.com","食品质量检验员","食品安全与品控的专业、食品卫生专业、卫生学、食品检验专业、食品科学","本科及以上",1,"有蔬菜食品、药品质量检验工作经验者优先","热爱本职工作，爱岗敬业，对工作要认真负责严把质量关；熟悉GMP相关认证知识；熟悉保健品、食品的检验方法和流程；具有食品或药品专业资格证；专业为食品工程、制药、化学生化或微生物等","面议"]
[48,"习水县旅游投资（集团）有限公司","国有企业","贵州省习水县西城区","江维","15934691180","360259203@qq.com","会计","财会","本科及以上",2,"无","中级或以上资质，精通财务办公软件及财务审计","面议"]
[49,"习水县旅游投资（集团）有限公司","国有企业","贵州省习水县西城区","江维","15934691180","360259203@qq.com","文秘","汉语言文学、文秘","本科及以上",2,"无","具有一定文字功底，能够独立完成重要文稿的起草，同时熟悉办文办会及重大活动的策划","面议"]
[50,"习水县旅游投资（集团）有限公司","国有企业","贵州省习水县西城区","江维","15934691180","360259203@qq.com","景点景区管理人员","旅游及市场营销","本科及以上",2,"无","制定公司各景点景区旅游中长期发展战略，创造和交换旅游产品、旅游服务及其价值，以满足旅游需要，整体打造和提升景点景区形象","面议"]
[51,"习水县旅游投资（集团）有限公司","国有企业","贵州省习水县西城区","江维","15934691180","360259203@qq.com","旅游开发规划设计人员","旅游项目规划","本科及以上",2,"无","制定公司各景点景区旅游中长期发展战略，创造和交换旅游产品、旅游服务及其价值，以满足旅游需要，整体打造和提升景点景区形象","面议"]
[52,"习水县旅游投资（集团）有限公司","国有企业","贵州省习水县西城区","江维","15934691180","360259203@qq.com","酒店管理人员","旅游及酒店管理","本科及以上",2,"无","具备一定亲和力、沟通能力、应变能力；自身素质过硬，爱岗敬业，踏实肯干，谦虚好学，能安心在生产、建设、管理和服务第一线工作","面议"]
[53,"贵州省习水县小糊涂仙酒业有限公司","民营企业","贵州省习水县白酒工业园区","宗梁","13826046126","wuyeliuxing@foxmail.com","副总经理","食品、酿酒、微生物相关专业","本科及以上",1,"无","50周岁以下，负责相关生产技术标准的制定和修订、基础酒定级办法制定、原辅料、半成品酒检测、成品酒勾调技术和质量体系的构建以及人才队伍的搭建。","面议"]
[54,"贵州省习水县小糊涂仙酒业有限公司","民营企业","贵州省习水县白酒工业园区","宗梁","13826046126","wuyeliuxing@foxmail.com","（白酒）技术部经理","食品、酿酒、微生物相关专业","本科及以上",1,"无","50周岁以下，负责技术和质量体系构建，相关生产技术标准制定，基础酒定级办法制定，原辅料、半成品酒检测，成品酒勾调","面议"]
[55,"贵州省习水县小糊涂仙酒业有限公司","民营企业","贵州省习水县白酒工业园区","宗梁","13826046126","wuyeliuxing@foxmail.com","质管部经理","食品、酿酒、微生物相关专业","专科及以上",1,"无","40周岁以下，负责质量管理人才方面的培养，质量管理体系的建立和推进以及相关质量标准的制定、包装材料的检测","面议"]
[56,"贵州省习水县小糊涂仙酒业有限公司","民营企业","贵州省习水县白酒工业园区","宗梁","13826046126","wuyeliuxing@foxmail.com","品评主管","食品、酿酒、微生物相关专业","专科及以上",1,"无","40周岁以下，负责基酒的定级、半成品酒品评、出厂成品酒的品评","面议"]
[57,"贵州省习水县小糊涂仙酒业有限公司","民营企业","贵州省习水县白酒工业园区","宗梁","13826046126","wuyeliuxing@foxmail.com","勾调主管","食品、酿酒、微生物相关专业","专科及以上",1,"无","40周岁以下，负责成品酒勾调、小样、参评酒样的制作","面议"]
[58,"贵州省习水县小糊涂仙酒业有限公司","民营企业","贵州省习水县白酒工业园区","宗梁","13826046126","wuyeliuxing@foxmail.com","酒库主管","食品、酿酒、微生物相关专业","专科及以上",1,"无","40周岁以下，负责基酒的存储管理、酒库的安全管理","面议"]
[59,"贵州省习水县小糊涂仙酒业有限公司","民营企业","贵州省习水县白酒工业园区","宗梁","13826046126","wuyeliuxing@foxmail.com","研发主管","食品、酿酒、微生物相关专业","硕士及以上",1,"无","35周岁以下，负责酿酒工艺的总结、新工艺的研发和试产","面议"]
[60,"贵州省习水县小糊涂仙酒业有限公司","民营企业","贵州省习水县白酒工业园区","宗梁","13826046126","wuyeliuxing@foxmail.com","化验室主管","食品、酿酒、微生物相关专业","专科及以上",1,"无","40周岁以下，负责原辅料、基酒和成品酒的检测、协助研发项目的检测","面议"]
[61,"贵州省习水县小糊涂仙酒业有限公司","民营企业","贵州省习水县白酒工业园区","宗梁","13826046126","wuyeliuxing@foxmail.com","品管主管","食品、酿酒、微生物相关专业","专科及以上",1,"无","40周岁以下，负责包装材料的抽检、不合格材料的定性、生产过程中的质量控制，降低不合格率","面议"]
[62,"贵州省习水县小糊涂仙酒业有限公司","民营企业","贵州省习水县白酒工业园区","宗梁","13826046126","wuyeliuxing@foxmail.com","体系主管","不限","专科及以上",1,"无","40周岁以下，负责质量管理体系的建立，开展体系标准的惯窃和纠编工作","面议"]
[63,"贵州省习水县小糊涂仙酒业有限公司","民营企业","贵州省习水县白酒工业园区","宗梁","13826046126","wuyeliuxing@foxmail.com","品酒师","食品相关专业","专科及以上",3,"无","30周岁以下，负责基酒品评定级、成品酒出厂判定","面议"]
[64,"贵州省习水县小糊涂仙酒业有限公司","民营企业","贵州省习水县白酒工业园区","宗梁","13826046126","wuyeliuxing@foxmail.com","调酒师","食品相关专业","专科及以上",3,"无","30周岁以下，负责成品酒的勾调、参评酒样的制作","面议"]
[65,"贵州省习水县小糊涂仙酒业有限公司","民营企业","贵州省习水县白酒工业园区","宗梁","13826046126","wuyeliuxing@foxmail.com","酒库管理员","不限","专科及以上",2,"无","35周岁以下，负责基酒的储存、基酒的转移和组合","面议"]
[66,"贵州省习水县小糊涂仙酒业有限公司","民营企业","贵州省习水县白酒工业园区","宗梁","13826046126","wuyeliuxing@foxmail.com","研发专员","食品、酿酒、微生物相关专业","硕士及以上",2,"无","30周岁以下，负责大曲、酿造工艺的总结、提炼新工艺的研发和试产","面议"]
[67,"贵州省习水县小糊涂仙酒业有限公司","民营企业","贵州省习水县白酒工业园区","宗梁","13826046126","wuyeliuxing@foxmail.com","化验员","不限","专科及以上",1,"无","30周岁以下，负责原辅料、基酒、成品酒的检测工作、检测设备的维护和保养","面议"]
[68,"贵州省习水县小糊涂仙酒业有限公司","民营企业","贵州省习水县白酒工业园区","宗梁","13826046126","wuyeliuxing@foxmail.com","内检员","不限","专科及以上",4,"无","30周岁以下，负责灌装过程的质量监督、不合格品的判断","面议"]
[69,"贵州省习水县小糊涂仙酒业有限公司","民营企业","贵州省习水县白酒工业园区","宗梁","13826046126","wuyeliuxing@foxmail.com","外检员","不限","专科及以上",4,"无","30周岁以下，负责包装材料的检测、原辅料的抽样、包装材料不合格品的判断","面议"]
[70,"贵州省习水县小糊涂仙酒业有限公司","民营企业","贵州省习水县白酒工业园区","宗梁","13826046126","wuyeliuxing@foxmail.com","体系专员","食品相关专业","专科及以上",1,"无","30周岁以下，负责相关标准的贯彻、落实、建立质量、环境等体系","面议"]
[71,"贵州省习水县小糊涂仙酒业有限公司","民营企业","贵州省习水县白酒工业园区","宗梁","13826046126","wuyeliuxing@foxmail.com","检测工程师","食品相关专业","专科及以上",4,"无","30周岁以下，负责检测方法的制定和修订、化验员工的培训","面议"]
[72,"贵州省习水县小糊涂仙酒业有限公司","民营企业","贵州省习水县白酒工业园区","宗梁","13826046126","wuyeliuxing@foxmail.com","人事部经理","不限","专科及以上",1,"无","40周岁以下","面议"]
[73,"贵州省习水县小糊涂仙酒业有限公司","民营企业","贵州省习水县白酒工业园区","宗梁","13826046126","wuyeliuxing@foxmail.com","行政助理","不限","专科及以上",2,"无","30岁以下","面议"]
[74,"务川仡佬族苗族自治县旅游投资发展有限有限公司","国有企业","贵州省遵义市务川仡佬族苗族自治县文旅新局旁","徐乔兰","085125623338","723995513@qq.com","会计","会计及相关专业","全日制本科及以上",1,"无","具备所学专业应具备的基本技术能力","工资待遇与当地同期录用行政事业单位人员持平。"]
[75,"务川仡佬族苗族自治县旅游投资发展有限有限公司","国有企业","贵州省遵义市务川仡佬族苗族自治县文旅新局旁","徐乔兰","085125623338","723995513@qq.com","市场营销","工商管理、市场营销","全日制本科及以上",1,"无","具备所学专业应具备的基本技术能力。","工资待遇与当地同期录用行政事业单位人员持平。"]
[76,"务川仡佬族苗族自治县旅游投资发展有限有限公司","国有企业","贵州省遵义市务川仡佬族苗族自治县文旅新局旁","徐乔兰","085125623338","723995513@qq.com","景区运营管理","工商管理、旅游管理","全日制本科及以上",1,"无","具备所学专业应具备的基本技术能力","工资待遇与当地同期录用行政事业单位人员持平。"]
[77,"务川仡佬族苗族自治县旅游投资发展有限有限公司","国有企业","贵州省遵义市务川仡佬族苗族自治县文旅新局旁","徐乔兰","085125623338","723995513@qq.com","投融资","金融、经济学、财务管理","全日制本科及以上",1,"无","具备所学专业应具备的基本技术能力","工资待遇与当地同期录用行政事业单位人员持平。"]
[78,"务川新型工业投资开发有限公司","国有企业","贵州省遵义市务川自治县大坪绿智产业园","幸仁举","18984978118","723995513@qq.com","法务部经理","法学类","全日制硕士",1,"无","具备所学专业应具备的基本技术能力和领导能力","薪酬按行政事业单位同级同岗工资总体水平的1.8倍以内计发；社会保障按国有企业有关规定执行"]
[79,"务川新型工业投资开发有限公司","国有企业","贵州省遵义市务川自治县大坪绿智产业园","幸仁举","18984978118","723995513@qq.com","企划部经理","工商管理、市场营销、艺术设计、广告学","全日制硕士",1,"无","具备所学专业应具备的基本技术能力和领导能力","薪酬按行政事业单位同级同岗工资总体水平的1.8倍以内计发；社会保障按国有企业有关规定执行"]
[80,"务川新型工业投资开发有限公司","国有企业","贵州省遵义市务川自治县大坪绿智产业园","幸仁举","18984978118","723995513@qq.com","资产部经理","国际经济与贸易、经济学、贸易经济、财务管理、财务会计","全日制硕士",1,"无","具备所学专业应具备的基本技术能力和领导能力","薪酬按行政事业单位同级同岗工资总体水平的1.8倍以内计发；社会保障按国有企业有关规定执行"]
[81,"务川新型工业投资开发有限公司","国有企业","贵州省遵义市务川自治县大坪绿智产业园","幸仁举","18984978118","723995513@qq.com","企划部职员","工商管理、市场营销、艺术设计、广告学","全日制本科及以上",1,"无","具备所学专业应具备的基本技术能力和领导能力","薪酬按行政事业单位同级同岗工资总体水平的1.8倍以内计发；社会保障按国有企业有关规定执行"]
[82,"务川新型工业投资开发有限公司","国有企业","贵州省遵义市务川自治县大坪绿智产业园","幸仁举","18984978118","723995513@qq.com","工程部职员","土建工程类、道路与桥梁工程类","全日制本科及以上",1,"无","具备所学专业应具备的基本技术能力和领导能力","薪酬按行政事业单位同级同岗工资总体水平的1.8倍以内计发；社会保障按国有企业有关规定执行"]
[83,"务川昇辉医院","民营企业","务川县新城区银杏大道中段","屠逊","17785240634","723995513@qq.com","临床医师","临床医学类","全日制本科及以上",15,"无","具备所学专业应具备的基本技术能力","享受备案制管理相关政策待遇及人才引进安家费5万元"]
[84,"正安县城乡建设投资有限责任公司","国有企业","贵州省遵义市正安县凤仪街","汪文奇","13648526953","1103295290@qq.com","副总经理","金融、金融学","硕士及以上",1,"具有银行、证券、信托、基金等相关行业3年及以上工作经历","从事管理岗位工作","年薪不低于20万元，年终根据工作业绩考核，实行“一事一议”另行给予奖励"]
[85,"正安县城乡建设投资有限责任公司","国有企业","贵州省遵义市正安县凤仪街","汪文奇","13648526953","1103295290@qq.com","管理或专技","不限","本科及以上",5,"具有咨询工程师、造价工程师、二级建造师及以上资格且具有3年及以上相关行业实际工作经历","管理或专业技术人才均可","待遇面议"]
[86,"正安县国有资产投融资经营有限责任公司","国有企业","贵州省遵义市正安县凤仪街","汪文奇","13648526953","1103295290@qq.com","副总经理","金融、金融学","硕士及以上",1,"具有银行、证券、信托、基金等相关行业3年及以上工作经历","从事管理岗位工作","年薪不低于20万元，年终根据工作业绩考核，实行“一事一议”另行给予奖励"]
[87,"正安县旅游投资有限责任公司","国有企业","贵州省遵义市正安县凤仪街","汪文奇","13648526953","1103295290@qq.com","副总","金融、金融学","硕士及以上",1,"具有银行、证券、信托、基金等相关行业3年及以上工作经历","从事管理岗位工作","年薪不低于20万元，年终根据工作业绩考核，实行“一事一议”另行给予奖励"]